Workbook

Sheet 名录索引
B2: 北京中汽总回国留学人员购车服务有限公司
B3: 免税车价目索引 排名不分先后 | L3: 2019.6.17
B5: 一汽大众-奥迪 | E5: 华晨宝马 | H5: 北京奔驰 | K5: 沃尔沃
B6: A3 A4L A6L Q3 Q5L Q2L | E6: 5系 3系 2系 1系 X3 X1 | H6: E级 C级 A级 GLA GLC | K6: S90L S60L XC60 XC40
B8: 一汽大众 | E8: 长安福特 | H8: 东风日产 | K8: 上汽大众
B9: 迈腾 探岳 高尔夫 CC 嘉旅 GTI 速腾 探戈 蔚领 宝来 捷达 | E9: 锐界 金牛座 蒙迪欧 翼虎 翼博 福克斯 福睿斯 | H9: 奇骏 逍客 楼兰 劲客 轩逸 天籁 骐达 西玛 蓝鸟 阳光 | K9: 途观L 途昂 途岳 辉昂 帕萨特 途安L 凌渡 柯珞克 朗行 朗逸 柯迪亚克 明锐 昕锐 速派
B11: 一汽丰田 | E11: 广汽丰田 | H11: 东风本田 | K11: 广汽本田
B12: 普拉多 RAV4 卡罗拉 奕泽 皇冠 威驰 花冠 锐志 普锐斯 | E12: 汉兰达 凯美瑞 雷凌 致炫 致享 | H12: CR-V XR-V 思域 艾力绅 UR-V 艾力绅 杰德 哥瑞 思铂睿 | K12: 雅阁 冠道 奥德赛 飞度 凌派 锋范 缤智
B14: 奇瑞捷豹路虎 | E14: 东风英菲尼迪 | H14: 上汽通用 | K14: 长安马自达
B15: 发现神行 揽胜极光 XFL XEL E-Pace | E15: QX50 Q50L | H15: 凯迪拉克XT5 XTS CT6 XT4 ATS-L 别克昂科威 君越 君威 GL8 雪佛兰探界者 迈锐宝 | K15: CX-8 CX-5 昂克赛拉
B17: 北京现代 | E17: 东风标致 | H17: 上汽集团 | K17: 东风雪铁龙
B18: ix35 ix25 索纳塔 途胜 朗动 胜达 名图 | E18: 暂无车 | H18: RW550 RW750 RW950 RW350 MG3 MG5 MG6 W5 | K18: 暂无车
B20: 免税价格根据厂方发布的讯息及时更新，鉴于各生产厂家将不断对其产品进行改进或升级，所提供的车型品种、配置及价格亦有可能发生变化。价目表供参考。配置及价格由生产厂确立并以提供的实车为准。
B24: 销售服务热线：010-88453392 了解更多www.88453392.com
B25: — 业精于专 服务至上 —

Sheet 一汽大众奥迪
A1: 一汽大众-奥迪 | E1: 2019.6.17
A2: 购买奥迪免税车可享受奥迪VIP专享交车服务以及售后服务：提车厂家免费赠送一箱油及首保免费优惠。
A3: 销售咨询电话：010-88453392转801、010-88450892、13901247598（微信同号）
A4: 【监管地海关：绿园海关；关区代码：1501】
A5: 品牌 | B5: 型 号 | C5: 市场指导价 | D5: 免税价 | E5: 代理费
A6: 奥迪 Q5L | B6: 2.0T 40TFSI 荣享进取型+19寸轮毂 | C6: 382800 | D6: 292841.76 | E6: 2800
B7: 2.0T 40TFSI 荣享时尚型 | C7: 413800 | D7: 316557.07
B8: 2.0T 45TFSI 尊享时尚型 | C8: 445200 | D8: 340577.48
B9: 2.0T 45TFSI 尊享风雅型（内饰：岩石灰/花岗岩灰） | C9: 475000 | D9: 363375.23
B10: 2.0T 45TFSI 尊享风雅型（内饰：黑色/岩石灰） | C10: 474900 | D10: 363297.26
B11: 2.0T 45TFSI 尊享运动型 | C11: 470900 | D11: 360238.35
B12: 2.0T 45TFSI Sport 尊享豪华运动型 | C12: 498000 | D12: 380969.33
B13: 外观颜色：朱鹭白、传奇黑、古铜棕、探索蓝、风尚红、花剑银、季风灰 内饰颜色：黑色、黑棕/古铜棕、岩石灰/花岗岩灰
A14: 品牌 | B14: 型 号 | C14: 市场指导价 | D14: 免税价格 | E14: 代理费
A15: 全新奥迪A6L | B15: 2.0T40TFSI豪华致雅型（加前后座椅加热 加四驱空调） | C15: 419800 | D15: 356830.27 | E15: 2500
B16: 2.0T40TFSI豪华致雅型 | C16: 409800 | D16: 348329.28
B17: 2.0T40TFSI豪华动感型（加前后座椅加热 加四驱空调） | C17: 419800 | D17: 356830.27
B18: 2.0T40TFSI豪华动感型 | C18: 409800 | D18: 348329.28
B19: 2.0T45TFSI臻选致雅 | C19: 433800 | D19: 368730.3
B20: 2.0T45TFSI臻选致雅（加前后座椅加热） | C20: 438800 | D20: 372980.23
B21: 2.0T45TFSI臻选动感型 | C21: 433800 | D21: 368730.3
B22: 2.0T45TFSI臻选动感型（加前后座椅加热） | C22: 438800 | D22: 372980.23
B23: 2.0T45TFSI Quattro臻选致雅型 | C23: 463800 | D23: 394229.88
B24: 2.0T45TFSI Quattro臻选致雅（加前后座椅加热） | C24: 468800 | D24: 398479.81
B25: 2.0T45TFSI Quattro臻选动感型 | C25: 463800 | D25: 394229.88
B26: 2.0T45TFSI Quattro臻选动感型（加前后座椅加热） | C26: 468800 | D26: 398479.81
B27: 2.0T45TFSI Quattro尊享致雅型 | C27: 506800 | D27: 暂无车
B28: 2.0T45TFSI Quattro尊享动感型 | C28: 506800 | D28: 430779.73
B29: 3.0T55TFSI Quattro尊享致雅型 | C29: 541800 | D29: 460530.37
B30: 3.0T55TFSI Quattro尊享动感型 | C30: 541800 | D30: 暂无车
B31: 3.0T55TFSI Quattro旗舰致雅型
B32: 3.0T55TFSI Quattro旗舰动感型
B33: 外观颜色：白金色、传奇黑、日珥红、探索蓝、朱鹭白、天云灰 内饰：黑色、旋翼灰、欧卡皮棕、火山岩浆红
A35: 品牌 | B35: 型号 | C35: 市场指导价 | D35: 免税价格 | E35: 代理费
A36: A3 Sport Back （两厢） 2019款 | B36: 1.4T 两厢35TFSI进取型 | C36: 188600 | D36: 137678.07 | E36: 2500
B37: 1.4T 两厢35TFSI时尚型 | C37: 212800 | D37: 155344.49
B38: 1.4T 两厢35TFSI时尚型（+高端空调） | C38: 215800 | D38: 157534.43
B39: 1.4T 两厢35TFSI风尚型 | C39: 228700 | D39: 166950.72
B40: 1.4T 两厢35TFSI运动型 | C40: 228700 | D40: 166950.72
B41: 2.0T两厢40TFSI风尚型 | C41: 245500 | D41: 179214.61
B42: 2.0T两厢40TFSI运动型 | C42: 245500 | D42: 179214.61
B43: 外观颜色：冰川白、西拉红、探戈红（全系可选） 鹦鹉蓝、喀纳斯绿（除2.0T） 注：A3 1.4T 35TFSI 时尚型 增配高端空调
A44: A3 Limousine （三厢） 2019款 | B44: 1.4T 三厢35TFSI进取型 | C44: 194600 | D44: 142057.95
B45: 1.4T 三厢35TFSI时尚型 | C45: 218800 | D45: 159723.24
B46: 1.4T 三厢35TFSI时尚型（+高端空调） | C46: 221800 | D46: 161914.31
B47: 1.4T 三厢35TFSI风尚型 | C47: 232700 | D47: 169870.64
B48: 1.4T 三厢35TFSI运动型 | C48: 232700 | D48: 169870.64
B49: 2.0T三厢40TFSI风尚型 | C49: 250900 | D49: 183156.05
B50: 2.0T三厢40TFSI运动型 | C50: 250900 | D50: 183156.05
B51: 外观颜色：冰川白、西拉红、探戈红（全系可选） 鹦鹉蓝、喀纳斯绿（除2.0T） 注：A3 Limousine 1.4T 35TFSI 时尚型 可选 增配高端空调
A52: 品牌 | B52: 型 号 | C52: 市场指导价 | D52: 免税价格 | E52: 代理费
A53: A4L 2019款 | B53: 1.4T35TFSI进取型 | C53: 286800 | D53: 219400.8 | E53: 2500
B54: 2.0T40TFSI进取型 | C54: 300800 | D54: 230112.07
B55: 2.0T40TFSI时尚型 | C55: 335800 | D55: 256886.29
B56: 2.0T40TFSI时尚型（+冬季包） | C56: 338600 | D56: 259028.77
B57: 2.0T40TFSI运动型 | C57: 362800 | D57: 277542.69
B58: 2.0T40TFSI运动型（+冬季包） | C58: 365600 | D58: 279684.04
B59: 2.0T四驱45TFSI个性运动版 | C59: 362800 | D59: 277542.69
B60: 2.0T四驱45TFSI个性运动版（+冬季包） | C60: 365600 | D60: 279684.04
B61: 2.0T四驱45TFSI运动型 | C61: 401800 | D61: 307375.82
B62: 2.0T四驱45TFSI运动型+（冬季包） | C62: 404600 | D62: 309519.43
B63: 外观颜色：白金色、朱鹭白、阿格斯棕（除运动型）花剑银、天云灰、探戈红、传奇黑、探索蓝、冰川蓝（限进取型、时尚型）
A65: 品牌 | B65: 型号 | C65: 市场指导价 | D65: 免税价格 | E65: 代理费
A66: Q3 典藏版 | B66: 1.4T30TFSI前驱时尚型 | C66: 260000 | D66: 181998.93 | E66: 2800
B67: 1.4T30TFSI前驱风尚型+前排座椅加热 | C67: 284900 | D67: 199430.31
B68: 1.4T30TFSI前驱风尚型 | C68: 282800 | D68: 197959.05
B69: 2.0T35TFSI前驱时尚型 | C69: 279800 | D69: 195860.64
B70: 2.0T35TFSI前驱运动型 | C70: 301600 | D70: 211120.16
B71: 2.0T35TFSI前驱运动型+前排座椅加热 | C71: 303700 | D71: 212590.29
B72: 外观颜色：冰川白、萨摩亚橙、驯鹿棕、米萨诺红、铂金米
A73: 全新奥迪Q3（资源紧张，每月限量20台） | B73: 1.4T 35TFSI进取致雅型 | C73: 271800 | D73: 231029.63
B74: 1.4T 35TFSI进取动感型 | C74: 271800 | D74: 231029.63
B75: 1.4T 35TFSI时尚致雅型 | C75: 286800 | D75: 243779.42
B76: 1.4T 35TFSI时尚动感型 | C76: 286800 | D76: 243779.42
B77: 2.0T40TFSI时尚致雅型(+B&O音响 6000） | C77: 307800 | D77: 261630.03
B78: 2.0T40TFSI时尚动感型 | C78: 301800 | D78: 256530.34
B79: 2.0T40TFSI时尚动感型quattro | C79: 318800 | D79: 270980.78
B80: 2.0T45TFSI豪华动感型quattro | C80: 359800 | D80: 305829.98
B81: 外观颜色：冰川白、天云灰、雪邦蓝、古铜棕、龙橙-、探戈红
A82: 品牌 | B82: 型 号 | C82: 市场指导价 | D82: 免税价 | E82: 代理费
A83: 全新Q2L | B83: 1.4T 上市专享版 | C83: 218800 | D83: 164099.73 | E83: 2800
B84: 1.4T 时尚智雅型 | C84: 236600 | D84: 177450.68
B85: 1.4T 时尚动感型 | C85: 238400 | D85: 178799.9
B86: 1.4T 豪华致雅型 | C86: 268500 | D86: 201375.04
B87: 外观颜色：冰川白、锰石黑、珊瑚橙、凯拉什蓝、探戈红
A88: 申请奥迪免税车海关关封填报：【监管地海关：长春海关 关区代码：1501】
A89: 备注：免税价格根据厂方发布的讯息及时更新，鉴于各生产厂家将不断对其产品进行改进或升级，所提供的车型品种、配置及价格亦有可能发生变化。价目表供参考。配置及价格由生产厂确立并以提供的实车为准。
A90: 查看最新免税价格请登录中汽总新版网站：www.88453392.com

Sheet 华晨宝马
A1: 2019年第二季度BMW留学生免税车价格 | F1: 2019.4.1
A2: 此方案有效期2019年4月1日-6月30日（以付款日期为准）
A3: 销售咨询电话：010-88453392转805、18611668589（微信同号）
A4: 【监管地海关：沈阳海关；关区代码：0800】
A5: 品牌 | B5: 型号 | C5: 市场指导价 | D5: 免税价 | E5: 折扣 | F5: 备 注
A6: BMW X1 2019款 | B6: X1 sDrive18Li 时尚型 | C6: 276800 | D6: 211500 | E6: =1-D6/C6 -> 0.2359104046 | F6: 基础保养费用: 约918~1047元 保养周期: 12000公里或12个月 宝马X1代理费2800元
B7: X1 sDrive18Li 尊享型(X设计套装、运动设计套装） | C7: 296800 | D7: 226800 | E7: =1-D7/C7 -> 0.2358490566
B8: X1 sDrive20Li 领先型 | C8: 309800 | D8: 236700 | E8: 0.235958683
B9: X1 xDrive20Li 尊享型(X设计套装、运动设计套装） | C9: 339800 | D9: 259700 | E9: 0.2357268982
B10: X1 xDrive20Li 豪华型(X设计套装、运动设计套装） | C10: 369800 | D10: 282600 | E10: 0.2358031368
B11: 车身颜色：雪山白、宝石青、开士米银、墨尔本红、矿石白、巴伦西亚橙、星光棕、旋风棕、地中海蓝、栗铜棕 （雪山白为普通漆，其他均为金属漆） 内饰颜色：X1 sDrive18Li 时尚型、X1 sDrive20Li 领先型 - 黑色合成皮、堪培拉米色合成皮 X1 sDrive18Li 尊享型X设计套装、X1 xDrive20Li 尊享型X设计套装、X1 xDrive20Li 豪华型X设计套装 - 黑色真皮、摩卡色真皮 X1 sDrive18Li 尊享型运动设计套装、X1 xDrive20Li 尊享型运动设计套装、X1 xDrive20Li 豪华型运动设计套装 -黑色真皮、摩卡色真皮、黑色真皮配红色缝线 上述信息仅供参考，车型配置信息适用于一定生产月，详情请咨询您当地的BMW授权经销商
B12: BMW专属定制部分优惠5% 专属定制内容：http://www.bmw.com.cn/zh_CN/newvehicles/x/x1/2016/specsheet.html
A13: 品牌 | B13: 型号 | C13: 市场指导价 | D13: 免税价 | E13: 折扣 | F13: 备 注
A14: BMW X3 | B14: X3 xDrive 25i (豪华套装、M运动套装） | C14: 389800 | D14: 341100 | E14: =1-D14/C14 -> 0.1249358645 | F14: 基础保养费用: 约1000元 保养周期: 12000公里或12个月 宝马X3代理费2800元
B15: X3 xDrive 28i (豪华套装、M运动套装） | C15: 425800 | D15: 372600 | E15: 0.124941287
B16: X3 xDrive 30i领先型M运动套装 | C16: 479800 | D16: 410300 | E16: 0.1448520217
B17: X3 xDrive 30i尊享型M运动套装 | C17: 565800 | D17: 483800 | E17: 0.1449275362
B18: 车身颜色：X3 xDrive 25i 豪华套装、 X3 xDrive 28i 豪华套装 - 矿石白、宝石青、月光银、弗拉门科红、旋风棕、陶晶棕、量子蓝 X3 xDrive 25i M运动套装、X3 xDrive 28i M运动套装、X3 xDrive30i M运动套装、X3 xDrive30i 尊享型M运动套装 - 矿石白、宝石青、旋风棕、量子蓝、碳黑色、弗拉门科红 内饰颜色：X3 xDrive 25i 豪华套装/M运动套装 - 摩卡色Sensatec合成皮、黑色Sensatec合成皮 X3 xDrive 28i 豪华套装/M运动套装、X3 xDrive30i领先型M运动套装 - 黑色Vernasca真皮，摩卡色Vernasca真皮，干邑色Vernasca真皮 X3 xDrive30i尊享型M运动套装 - 黑色Vernasca真皮，摩卡色Vernasca真皮 上述信息仅供参考，车型配置信息适用于一定生产月，详情请咨询您当地的BMW授权经销商
B19: BMW专属定制部分优惠5% 专属定制内容：http://www.bmw.com.cn/zh_CN/newvehicles/x/x1/2016/specsheet.html
A20: 品牌 | B20: 型号 | C20: 市场指导价 | D20: 免税价 | E20: 折扣 | F20: 备 注
A21: 新BMW 2系旅行车 | B21: 218i 时尚型 | C21: 219800 | D21: 175900 | E21: =1-D21/C21 -> 0.1997270246 | F21: 基础保养费用: 约918~1047元 保养周期: 12000公里或12个月 宝马2系代理费2500元
B22: 218i 领先型 | C22: 239800 | D22: 191900 | E22: 0.1997497915
B23: 218i 尊享型运动套装 | C23: 259800 | D23: 207900 | E23: 0.1997690531
B24: 220i 豪华套装 | C24: 289800 | D24: 217400 | E24: 0.2498274672
B25: 车身颜色：开士米银、墨尔本红、矿石白、星光棕、巴伦西亚橙、铂金银、地中海蓝、栗铜棕、埃斯托蓝 内饰颜色：218i 时尚型 - 墨灰色 218i 领先型 - 黑色合成皮、堪培拉米色合成皮 218i 尊享型运动套装、220i豪华套装 - 黑色合成皮 上述信息仅供参考，车型配置信息适用于一定生产月，详情请咨询您当地的BMW授权经销商
B26: BMW专属定制部分优惠5% 专属定制内容：http://www.bmw.com.cn/zh_CN/newvehicles/2series/active_tourer/2016/specsheet.html
A27: 品牌 | B27: 型号 | C27: 市场指导价 | D27: 免税价 | E27: 折扣 | F27: 备 注
A28: BMW 5系 四门轿车 | B28: 525Li 豪华套装/M运动套装 | C28: 426900 | D28: 373200 | E28: =1-D28/C28 -> 0.1257905833 | F28: 基础保养费用: 约 1099~1229元 保养周期: 12000公里或12个月 宝马5系代理费2500元
B29: 530Li 领先型 (豪华套装、M运动套装） | C29: 463900 | D29: 405500 | E29: 0.1258892003
B30: 530Li xDrive (豪华套装、M运动套装） | C30: 483900 | D30: 423000 | E30: 0.1258524489
B31: 530Li 尊享型 (豪华套装、M运动套装） | C31: 506900 | D31: 443100 | E31: 0.1258630894
B32: 540Li 行政型 | C32: 643900 | D32: 549900 | E32: 0.1459854015
B33: 车身颜色：525Li豪华套装、530Li 领先型豪华套装、530Li xDrive豪华套装、530Li 尊享型豪华套装、540Li 行政型 - 宝石青、矿石白、开士米银、月光银、雪山白、巴西棕、铂金银、勃艮第红、胡卡罗米色（雪山白为普通漆，其他均为金属漆） 525LiM运动套装、530Li 领先型M运动套装、530Li xDrive M运动套装、530Li 尊享型M运动套装 - 宝石青、矿石白、碳黑色、巴西棕、勃艮第红、胡卡罗米色 内饰颜色：525Li豪华套装、M运动套装 - 合成皮黑色、合成皮堪培拉米色、合成皮摩卡色 530Li 领先型豪华套装、530Li xDrive豪华套装、530Li 尊享型豪华套装、540Li 行政型- Dakota真皮干邑色、Nappa真皮摩卡色、Nappa真皮象牙白、Nappa真皮黑色 530Li 领先型M运动套装、530Li xDrive M运动套装、 530Li 尊享型M运动套装- Dakota真皮火山红色、Dakota真皮干邑色、Dakota真皮黑色 上述信息仅供参考，车型配置信息适用于一定生产月，详情请咨询您当地的BMW授权经销商
B34: BMW专属定制部分优惠5% 专属定制内容：http://www.bmw.com.cn/zh_CN/newvehicles/5series/lwb/2013/specsheet.html
A35: 品牌 | B35: 型号 | C35: 市场指导价 | D35: 免税价 | E35: 折扣 | F35: 备 注
A36: BMW 3系 四门轿车2019款长轴距 车源有限 预定请咨询 | B36: 320Li 时尚型 | C36: 316800 | D36: 241100 | E36: =1-D36/C36 -> 0.2389520202 | F36: 基础保养费用: 约998~1199元 保养周期: 12000公里或12个月 宝马3系代理费2500元
B37: 320Li xDrive 时尚型 | C37: 339800 | D37: 258600 | E37: 0.2389640965
B38: 320Li (M豪华套装、M运动套装） | C38: 339800 | D38: 258600 | E38: 0.2389640965
B39: 320Li M运动曜夜版 | C39: 359800 | D39: 273900 | E39: 0.2387437465
B40: 车身颜色：320Li 时尚型、320Li xDrive 时尚型 - 开士米银、墨尔本红、雪山白、矿石白（雪山白为普通漆，其他均为金属漆） 320Li M运动套装、320Li M运动曜夜版、320Li M豪华套装 - 墨尔本红、雪山白、埃斯托蓝 内饰颜色：320Li 时尚型、320LiM运动套装、320Li xDrive 时尚型、320Li M豪华套装、320Li M运动曜夜版 - 黑色合成皮、摩卡色合成皮 上述信息仅供参考，车型配置信息适用于一定生产月，详情请咨询您当地的BMW授权经销商
B41: BMW专属定制部分优惠5% 专属定制内容：http://www.bmw.com.cn/zh_CN/newvehicles/3series/sedan/2015/specsheet.html
A42: BMW 3系 四门轿车2019款标准轴距 车源有限 预定请咨询 | B42: 320i M运动套装 | C42: 309800 | D42: 235800 | E42: =1-D42/C42 -> 0.2388637831
B43: 320i M运动曜夜版 | C43: 339800 | D43: 258600 | E43: 0.2389640965
B44: 车身颜色：320i M运动套装、320i M运动曜夜版 - 雪山白、墨尔本红、埃斯托蓝（雪山白为普通漆，其他均为金属漆） 内饰颜色：320i M运动套装、320i M运动曜夜版 - 黑色真皮带蓝色装饰条、摩卡色真皮、珊瑚红真皮带黑色装饰条 上述信息仅供参考，车型配置信息适用于一定生产月，详情请咨询您当地的BMW授权经销商
B45: BMW专属定制部分优惠5% 专属定制内容：http://www.bmw.com.cn/zh_CN/newvehicles/x/x1/2016/specsheet.html
A46: 品牌 | B46: 型号 | C46: 市场指导价 | D46: 免税价 | E46: 折扣 | F46: 备 注
A47: BMW 1系 运动轿车 | B47: 118i 时尚型（01/19) | C47: 198800 | D47: 169000 | E47: =1-D47/C47 -> 0.1498993964 | F47: 基础保养费用: 约 918~1047元 保养周期: 12000公里或12个月 宝马1系代理费2500元
B48: 118i M运动套装（01/19) | C48: 223800 | D48: 190300 | E48: 0.1496872207
B49: 120i 领先型M运动套装（01/19) | C49: 243800 | D49: 195100 | E49: 0.1997538966
B50: 120i M运动套装(01/19) | C50: 263800 | D50: 211100 | E50: 0.199772555
B51: 车身颜色：雪山白、矿石白、铂金银、地中海蓝、开士米银、星光棕、墨尔本红、勃艮第红、曙光金、埃斯托蓝 （雪山白为普通漆，其他均为金属漆） 内饰颜色：118i 时尚型 - 黑色合成皮，堪培拉米色合成皮 118i 运动型 - 墨灰色布料，黑色合成皮 118i 运动设计套装、120i 运动设计套装 - 黑色合成皮 118i 豪华设计套装、120i豪华设计套装 - 黑色合成皮、堪培拉米色合成皮 125i 运动型 - 黑色Dakota真皮 上述信息仅供参考，车型配置信息适用于一定生产月，详情请咨询您当地的BMW授权经销商
B52: BMW专属定制部分优惠5% 专属定制内容：http://www.bmw.com.cn/zh_CN/newvehicles/x/x1/2016/specsheet.html
A53: 备注：免税价格根据厂方发布的讯息及时更新，鉴于各生产厂家将不断对其产品进行改进或升级，所提供的车型品种、配置及价格亦有可能发生变化。价目表供参考。配置及价格由生产厂确立并以提供的实车为准。
A54: 查看最新免税价格请登录中汽总新版网站：www.88453392.com

Sheet 北京奔驰
A1: 北京奔驰 | E1: 2019.5.23更新
A2: 销售咨询电话:010-88453392转803、13146684090（微信同号）
A3: 监管地海关：北京海关；关区代码：0100
A4: 品牌 | B4: 型 号 | C4: 市场指导价格 | D4: 免税价格 | E4: 代理服务费
A5: 北京奔驰 GLC-Class | B5: GLC 200 L 4MATIC | C5: 390800 | D5: 354628.62 | E5: 2800
B6: GLC 260 L 4MATIC Dynamic | C6: 419800 | D6: 380728.62
B7: GLC 260 L 4MATIC Luxury | C7: 434800 | D7: 394228.62
B8: GLC 300 L 4MATIC Dynamic | C8: 478800 | D8: 433828.62
B9: GLC 300 L 4MATIC Luxury | C9: 562800 | D9: 509428.62
B10: 车身：北极白、曜岩黑、水晶棕、铱银、宝石蓝、炭灰蓝、 月光石灰、锆石英红、皓沙银、红宝石黑、松石绿 内饰：黑色、米色、棕色
A11: 品牌 | B11: 型 号 | C11: 市场指导价格 | D11: 免税价格 | E11: 代理服务费
A12: 北京奔驰 GLA-Class | B12: GLA 200 Dynamic | C12: 264800 | D12: 222692.62 | E12: 2800
B13: GLA 200 Style | C13: 282800 | D13: 237632.62
B14: GLA 220 4MATIC Sport | C14: 318000 | D14: 266848.62
B15: GLA 260 4MATIC Sport | C15: 385800 | D15: 323122.62
B16: 车身颜色：北极白、锆石英红、宇宙黑、月光石灰、宝石蓝 内饰颜色：黑色、米色(GLA260不提供)、棕色(GLA260专供)
A17: 品牌 | B17: 型 号 | C17: 市场指导价格 | D17: 免税价格 | E17: 代理服务费
A18: 北京奔驰 A-Class | B18: A 180 L Sedan | C18: 211800 | D18: 199882.62 | E18: 2500
B19: A 180 L Sport Sedan | C19: 229800 | D19: 216622.62
B20: A 200 L Sedan | C20: 260800 | D20: 245452.62
B21: A 200 L Sport Sedan | C21: 264800 | D21: 249172.62
B22: A 200 L Sport Sedan Edition 1 | C22: 293800 | D22: 276142.62
B23: 车身颜色：北极白、锆石英红、宇宙黑、皓沙银、水洗蓝 内饰颜色：黑色、蓝色、米色
A24: 品牌 | B24: 型 号 | C24: 市场指导价格 | D24: 免税价格 | E24: 代理服务费
A25: 北京奔驰 C级 长轴距轿车 C-Class | B25: C 180 L Dynamic Sport Sedan | C25: 307800 | D25: 273772.62 | E25: 2500
B26: C 180 L Style Sedan | C26: 315800 | D26: 280812.62
B27: C 180 L Style Sport Sedan | C27: 315800 | D27: 280812.62
B28: C 260 L Sedan | C28: 346800 | D28: 308092.62
B29: C 260 L Sport Sedan | C29: 346800 | D29: 308092.62
B30: C 260 L 4MATIC Sedan | C30: 373800 | D30: 331852.62
B31: C 260 L 4MATIC Sport Sedan | C31: 373800 | D31: 331852.62
B32: C 300 L Sedan | C32: 474800 | D32: 420732.62
B33: C 300 L Sport Sedan | C33: 474800 | D33: 420732.62
B34: 车身颜色：北极白、曜岩黑、铱银、宝石蓝、水硅钒钙石蓝、炭灰蓝、皓沙银、祖母石绿 月光石灰、锆英石红、钻石白（适用于C300L） 内饰颜色：黑色、米色、灰色
A35: 北京奔驰 C级 标准轴距轿车 C-Class | B35: C 260 Sport | C35: 310800 | D35: 276412.62
B36: C 260 4MATIC Sport Sedan | C36: 359800 | D36: 319532.62
B37: C 300 Sport | C37: 450800 | D37: 399612.62
B38: 车身颜色：北极白、曜岩黑、铱银、宝石蓝、水硅钒钙石蓝、皓沙银、祖母石绿 、锆英石红、炭灰蓝、月光石灰、钻石白（C300专供） 内饰颜色：黑色、红色、灰色
A39: 品牌 | B39: 型 号 | C39: 市场指导价格 | D39: 免税价格 | E39: 代理服务费
A40: 北京奔驰 E级 E-Class | B40: E 260 L Sedan | C40: 425800 | D40: 386128.62 | E40: 2500
B41: E 260 L Sport Sedan | C41: 425800 | D41: 386128.62
B42: E 260 L Sedan 4MATIC | C42: 448800 | D42: 406828.62
B43: E 260 L 4MATIC Sport Sedan | C43: 448800 | D43: 406828.62
B44: E 300 L Style Sedan | C44: 465800 | D44: 422128.62
B45: E 300 L Style Sport Sedan | C45: 465800 | D45: 422128.62
B46: E 300 L Exclusive Sedan | C46: 492800 | D46: 446428.62
B47: E 300 L Exclusive Sport Sedan | C47: 492800 | D47: 446428.62
B48: E 350 L 4MATIC Sedan | C48: 616800 | D48: 558028.62
B49: E 350 L 4MATIC Sport Sedan | C49: 616800 | D49: 558028.62
B50: 车身颜色：北极白色、曜岩黑色、铱银色、水晶棕色、水硅钒钙石蓝色、宝石蓝色 月光石灰色、炭灰蓝色、锆石英红色、钻石白色 内饰颜色：黑色、米色、棕色
A51: 备注：免税价格根据厂方发布的讯息及时更新，鉴于各生产厂家将不断对其产品进行改进或升级，所提供的车型品种、配置及价格亦有可能发生变化。价目表供参考。配置及价格由生产厂确立并以提供的实车为准。
A52: 查看最新免税价格请登录中汽总新版网站：www.88453392.com

Sheet 沃尔沃
A1: 沃尔沃 | F1: 2019.06.12
A2: 沃尔沃免税车型须通过“沃尔沃汽车沃世界”官方微信服务号预订 并需支付定金500元
A3: 销售咨询电话：010-88453392转805、18611668589（微信同号）
A4: 【监管地海关：S60L/XC60 成都海关（代码7906）、S90 大庆海关（代码1910)】
A5: 【监管地海关：沃尔沃 XC40 台州海关 代码（2905）】
C6: 报价有效期2019年5月28日至2019年6月30日
A7: 品牌 | B7: 型号 | C7: 市场指导价 | D7: 折让率 | E7: 免税价格 | G7: 代理服务费
A8: S60L 2020款 | B8: 2020款 S60L T5 智进进阶版 | C8: 249800 | D8: 0.27 | E8: 182354.48 | G8: 2500
B9: 2020款 S60L T5 智驭菁英版 | C9: 309800 | D9: 0.27 | E9: 226154.65 | F9: 198323.03
B10: 2020款 S60L 贴息贷款方案（农行） 贴息贷款客户，开票价以向银行申请 贷款日期为准。 此方案有效期2019年5月23日-6月30日 | C10: 贷款产品 | D10: 分期月数 | E10: 首付比例 | F10: 客户手续费率
C11: 0利率 | D11: 12 | E11: 首付>=30% | F11: -
D12: 24 | E12: 首付>=50% | F12: -
D13: 36 | E13: - | F13: 0%（最高贷款8万）
C14: 低利率 | D14: 24 | E14: 首付>=30% | F14: 0.02
D15: 36 | F15: 0.022
D16: 48 | F16: 0.071
D17: 60 | F17: 0.1225
B18: 2020款 S60L 贴息贷款方案（上海银行） 贴息贷款客户，开票价以向银行申请 贷款日期为准。 此方案有效期2019年5月23日-6月30日 | C18: 贷款产品 | D18: 分期月数 | E18: 首付比例 | F18: 客户手续费率
C19: 0利率 | D19: 12 | E19: 首付>=30% | F19: -
D20: 24 | E20: 首付>=50% | F20: -
D21: 36 | E21: - | F21: 0%（最高贷款8万）
C22: 低利率 | D22: 24 | E22: 首付>=30% | F22: 0.03
D23: 36 | F23: 0.06
D24: 48 | F24: 0.12
D25: 60 | F25: 0.18
B26: 2020款 S60L 贴息贷款方案（中国银行） 贴息贷款客户，开票价以向银行申请 贷款日期为准。 此方案有效期2019年5月23日-6月30日 | C26: 贷款产品 | D26: 分期月数 | E26: 首付比例 | F26: 客户手续费率
C27: 0利率 | D27: 12 | E27: 首付>=30% | F27: -
D28: 24 | E28: 首付>=50% | F28: -
D29: 36 | E29: - | F29: 0%（最高贷款8万）
C30: 低利率 | D30: 24 | E30: 首付>=30% | F30: 0.03
D31: 36 | F31: 0.055
D32: 48 | F32: 0.14
D33: 60 | F33: 0.2
B34: 可选颜色：水晶白珍珠漆、玛瑙黑、耀目沙、贻贝蓝、枫木棕、松林灰； 可选内饰：黑内饰+黑色座椅、黑内饰+棕色座椅
A35: 品牌 | B35: 型号 | C35: 市场指导价 | D35: 折让率 | E35: 免税价 | G35: 代理服务费
A36: S90长轴距 2020款 | B36: S90 2020款 T4 智行豪华版 | C36: 372900 | D36: 0.32 | E36: 253573.11 | G36: 2500
B37: S90 2020款 T5 智逸豪华版 | C37: 402900 | D37: 0.32 | E37: 273973.2
B38: S90 2020款 T5 智逸运动版 | C38: 402900 | D38: 0.32 | E38: 273973.2
B39: S90 2020款 T5 智远豪华版 | C39: 439900 | D39: 0.32 | E39: 299133.45
B40: S90 2020款 T5 智远运动版 | C40: 439900 | D40: 0.32 | E40: 299133.45
B41: S90 2020款 T5 智雅豪华版 | C41: 495900 | D41: 0.32 | E41: 337213.3
B42: 可选颜色：水晶白珍珠漆、玛瑙黑、贻贝蓝、松林灰、枫木棕、焰影蓝； 可选内饰：黑色面料+舒适座椅、琥珀色面料+舒适座椅、棕色面料饰+舒适座椅、米色面料+舒适座椅、黑色面料+运动座椅
B43: S90 2020款 贴息贷款方案（农行） 贴息贷款客户，开票价以向银行申请 贷款日期为准。 此方案有效期2019年5月23日-6月30日 | C43: 贷款产品 | D43: 分期月数 | E43: 首付比例 | F43: 客户手续费率
C44: 0利率 | D44: 12 | E44: 首付>=30% | F44: -
D45: 24 | E45: 首付>=50% | F45: -
D46: 36 | E46: - | F46: 0%（最高贷款13万）
C47: 低利率 | D47: 24 | E47: 首付>=30% | F47: 0.02
D48: 36 | F48: 0.022
D49: 48 | F49: 0.071
D50: 60 | F50: 0.1225
B51: S90 2020款 贴息贷款方案（上海银行） 贴息贷款客户，开票价以向银行申请 贷款日期为准。 此方案有效期2019年5月23日-6月30日 | C51: 贷款产品 | D51: 分期月数 | E51: 首付比例 | F51: 客户手续费率
C52: 0利率 | D52: 12 | E52: 首付>=30% | F52: -
D53: 24 | E53: 首付>=50% | F53: -
D54: 36 | E54: - | F54: 0%（最高贷款13万）
C55: 低利率 | D55: 24 | E55: 首付>=30% | F55: 0.03
D56: 36 | F56: 0.06
D57: 48 | F57: 0.12
D58: 60 | F58: 0.18
B59: S90 2020款 贴息贷款方案（中国银行） 贴息贷款客户，开票价以向银行申请 贷款日期为准。 此方案有效期2019年5月23日-6月30日 | C59: 贷款产品 | D59: 分期月数 | E59: 首付比例 | F59: 客户手续费率
C60: 0利率 | D60: 12 | E60: 首付>=30% | F60: -
D61: 24 | E61: 首付>=50% | F61: -
D62: 36 | E62: - | F62: 0%（最高贷款13万）
C63: 低利率 | D63: 24 | E63: 首付>=30% | F63: 0.03
D64: 36 | F64: 0.055
D65: 48 | F65: 0.14
D66: 60 | F66: 0.2
A67: 品牌 | B67: 型号 | C67: 预售指导价 | D67: 折让率 | E67: 免税价 | G67: 代理服务费
A68: 全新XC60 2019款 微信价格包含500元 （报价有效期2019年4月1日至2019年6月30日） | B68: XC60 T4 智逸版 | C68: 362900 | D68: =1-(E68/C68) -> 0.2499966933 | E68: 272176.2 | F68: 295917.61 | G68: 代理费2800元 留学人员在二季度购车（以开票日期为准）享受厂家额外赠送5年车辆质保及6次免费保养服务（价值2万元）保养有效期6年或6万公里， 以先达到条件为准。
B69: XC60 T5 AWD 四驱智逸版 | C69: 391900 | D69: =1-(E69/C69) -> 0.2499979331 | E69: 293925.81 | F69: 319917.41
B70: XC60 T5 AWD 四驱智远版 | C70: 421900 | D70: 0.2499978431 | E70: 316425.91 | F70: 343917.21
B71: XC60 T5 AWD 四驱智远运动版 | C71: 421900 | D71: 0.2499978431 | E71: 316425.91 | F71: 343917.21
B72: XC60 T5 AWD 四驱智雅豪华版 | C72: 469900 | D72: 0.2499931475 | E72: 352428.22 | F72: 383923.17
B73: XC60 T5 AWD 四驱智雅运动版 | C73: 469900 | D73: 0.2499931475 | E73: 352428.22 | F73: 383923.17
B74: 可选颜色：水晶白珍珠漆、幻夜银、玛瑙黑、耀目沙、枫木棕、牛仔蓝、松林灰、熔岩红、焰影蓝； 可选内饰：黑内饰+黑色座椅、黑内饰+棕色座椅、黑内饰+琥珀色座椅、黑内饰+米色座椅、米内饰+米色座椅
B75: XC60 贴息贷款方案（农行） 贴息贷款客户，开票价以向银行申请 贷款日期为准。 此方案有效期2019年4月1日-6月30日 | C75: 贷款产品 | D75: 分期月数 | E75: 首付比例 | F75: 客户手续费率
C76: 0利率 | D76: 12 | E76: 首付>=30% | F76: -
D77: 24 | E77: 首付>=50% | F77: -
D78: 36 | E78: - | F78: 0%（最高贷款10万）
C79: 低利率 | D79: 24 | E79: 首付>=30% | F79: 0.02
D80: 36 | F80: 0.042
D81: 48 | F81: 0.071
D82: 60 | F82: 0.1225
D83: 36 | E83: 首付>=50% | F83: 0.022
B84: XC60 贴息贷款方案（上海银行） 贴息贷款客户，开票价以向银行申请 贷款日期为准。 此方案有效期2019年4月1日-6月30日 | C84: 贷款产品 | D84: 分期月数 | E84: 首付比例 | F84: 客户手续费率
C85: 0利率 | D85: 12 | E85: 首付>=30% | F85: -
D86: 24 | E86: 首付>=50% | F86: -
D87: 36 | E87: - | F87: 0%（最高贷款10万）
C88: 低利率 | D88: 24 | E88: 首付>=30% | F88: 0.03
D89: 36 | F89: 0.08
D90: 48 | F90: 0.12
D91: 60 | F91: 0.18
D92: 36 | E92: 首付>=50% | F92: 0.06
B93: XC60 贴息贷款方案（中国银行） 贴息贷款客户，开票价以向银行申请 贷款日期为准。 此方案有效期2019年4月1日-6月30日 | C93: 贷款产品 | D93: 分期月数 | E93: 首付比例 | F93: 客户手续费率
C94: 0利率 | D94: 12 | E94: 首付>=30% | F94: -
D95: 24 | E95: 首付>=50% | F95: -
D96: 36 | E96: - | F96: 0%（最高贷款10万）
C97: 低利率 | D97: 24 | E97: 首付>=30% | F97: 0.03
D98: 36 | F98: 0.075
D99: 48 | F99: 0.14
D100: 60 | F100: 0.2
D101: 36 | E101: 首付>=50% | F101: 0.055
A102: 品牌 | B102: 型号 | C102: 市场指导价 | D102: 折让率 | E102: 免税价 | G102: 代理服务费
A103: XC40 | B103: T3 智行时尚版 | C103: 264800 | E103: 沃尔沃XC40免税价格请拨打010-88453392咨询 | G103: 代理费2800元
B104: T3 智行时尚版+闪银灰白色撞色车顶 | C104: 267800
B105: T3 智远豪华版 | C105: 282800
B106: T4 四驱 智远豪华版 | C106: 318800
B107: T4 四驱 智远运动版 | C107: 318800
B108: T4 四驱 智雅豪华版 | C108: 354800
B109: T4 四驱 智雅运动版 | C109: 354800
B110: T5 四驱 智雅运动版 | C110: 385800
B111: 全新XC40正式启动销售，即日起至2019年6月30日完成购车即享： Ø 5年用车无忧：5年用车无忧，送10次保养，保养有效期10年。 Ø 30%首付，24期0利率 Ø 2年保险补贴 Ø 专属观影福利：定购既有机会获得两张免费电影票，数量有限，先到先得 注意：关于10年10次免费保养，客户购买由沃尔沃亚太生产、享有免费基础保养权益的XC40，2019年6月1日起在微信官方小程序“沃尔沃汽车沃世界”注册车辆信息后，即可获得10次免费基础保养，有效期为10年或10万公里，以先达到的条件为准。
B112: 中国农业银行金融产品方案 （费率以向银行申请 贷款日期为准） | C112: 贷款产品 | D112: 分期月数 | E112: 首付比例 | F112: 客户手续费率
C113: 0利率 | D113: 12 | E113: 30% | F113: 0
C114: 0利率 | D114: 24 | E114: 30% | F114: 0
C115: 低利率 | D115: 36 | E115: 30% | F115: 4.20%
E116: 50% | F116: 2.20%
D117: 48 | E117: 30% | F117: 7.10%
D118: 60 | E118: 30% | F118: 12.25%
B119: 上海银行金融产品方案 （费率以向银行申请 贷款日期为准） | C119: 贷款产品 | D119: 分期月数 | E119: 首付比例 | F119: 客户手续费率
C120: 0利率 | D120: 12 | E120: 30% | F120: 0
C121: 0利率 | D121: 24 | E121: 30% | F121: 0
C122: 低利率 | D122: 36 | E122: 30% | F122: 8.00%
E123: 50% | F123: 6.00%
D124: 48 | E124: 30% | F124: 12.00%
D125: 60 | E125: 30% | F125: 18.00%
B126: 中国银行金融产品方案 （费率以向银行申请 贷款日期为准） 上述客户费率为一次性收手续费，如需手续费分期支付，费率须上浮0.5%（0费率产品不上浮） | C126: 贷款产品 | D126: 分期月数 | E126: 首付比例 | F126: 客户手续费率
C127: 0利率 | D127: 12 | E127: 30% | F127: 0
C128: 0利率 | D128: 24 | E128: 30% | F128: 0
C129: 低利率 | D129: 36 | E129: 30% | F129: 7.50%
E130: 50% | F130: 5.50%
D131: 48 | E131: 30% | F131: 14.00%
D132: 60 | E132: 30% | F132: 20.00%
A133: 农行贷款开通地区：北京、上海、广州、深圳、重庆、天津、杭州、宁波、江苏、济南、青岛、厦门、福州、武汉、长沙、郑州、南昌、太原、石家庄、西安、成都、昆明、哈尔滨、沈阳、大连、长春、贵阳、银川、兰州、南宁、乌鲁木齐、安徽（各地网点将根据业务需求更新补充，详询各地代办服务机构）
A136: 上海银行贷款开通地区：北京、上海、杭州、宁波、南京、苏州、天津、成都（各地网点将根据业务需求更新补充，详询各地代办服务机构）
A138: 备注：免税价格根据厂方发布的讯息及时更新，鉴于各生产厂家将不断对其产品进行改进或升级，所提供的车型品种、配置及价格亦有可能发生变化。价目表供参考。配置及价格由生产厂确立并以提供的实车为准。
A139: 查看最新免税价格请登录中汽总新版网站：www.88453392.com

Sheet 奇瑞捷豹路虎
A1: 奇瑞·捷豹路虎留学生免税车 | F1: 2019.4.30
A2: 2019年第二季度免税价格
A3: 销售咨询电话：010-88453392转801、13901247598（微信同号）
A4: 【监管地海关：常熟海关；关区代码：2324】
A5: 车型 | B5: 型 号 | C5: 免税价格 | D5: 市场指导价 | E5: 折扣率 | F5: 代理服务费
A6: 路虎 揽胜极光 | B6: 2.0T 200PS PURE 新尚版 | C6: 279705 | D6: 385800 | E6: 0.275 | F6: 2800
B7: 2.0T 240PS PURE 风尚版 | C7: 292266 | D7: 404800 | E7: 0.2779990119
B8: 2.0T 240PS SE 智耀版 | C8: 320407 | D8: 454800 | E8: 0.2954991205
B9: 2.0T 240PS SE DYNAMIC 智锐版 | C9: 350836 | D9: 504800 | E9: 0.305
B10: 2.0T 240PS HSE DYNAMIC 致动版 | C10: 378799 | D10: 553800 | E10: 0.3160003611
A11: 路虎 发现神行 | B11: PURE 200PS | C11: 242933 | D11: 346800 | E11: =1-(C11/D11) -> 0.2995011534 | F11: 2800
B12: PURE 240PS | C12: 253865 | D12: 365800 | E12: =1-(C12/D12) -> 0.3060005467
B13: SE | C13: 270833 | D13: 394800 | E13: 0.3139994934
B14: HSE | C14: 304055 | D14: 452800 | E14: 0.3285004417
B15: HSE LUXURY | C15: 335035 | D15: 500800 | E15: 0.3310003994
A16: 车型 | B16: 型 号 | C16: 免税价格 | D16: 市场指导价 | E16: 折扣率 | F16: 代理服务费
A17: 捷豹 XFL | B17: 2.0T 200PS Comfort 舒适 | C17: 283917 | D17: 375800 | E17: 0.2444997339 | F17: 2500
B18: 2.0T 200PS Elite 精英版 | C18: 300292 | D18: 405800 | E18: 0.26
B19: 2.0T 250PS Prestige 豪华版 | C19: 323752 | D19: 443800 | E19: 0.2705002253
B20: 2.0T 250PS Prestige Lux 尊享版 | C20: 349064 | D20: 482800 | E20: 0.2770008285
B21: 2.0T 300PS Prestige Lux 四驱奢华版 | C21: 463040 | D21: 578800 | E21: 0.2
B22: 3.0T 340PS Supreme 奢华版 | C22: 498433 | D22: 666800 | E22: 0.2525
A23: 捷豹XEL | B23: 2.0T 200PS Elite 精英版 | C23: 230090 | D23: 281800 | E23: 0.1834989354 | F23: 2500
B24: 2.0T 200PS Luxury 豪华版 | C24: 243204 | D24: 311800 | E24: 0.22
B25: 2.0T 200PS Prestige 尊享版 | C25: 263991 | D25: 337800 | E25: 0.2184991119
B26: 2.0T 250PS Prestige 尊享版 | C26: 283710 | D26: 362800 | E26: 0.2179988975
B27: 2.0T 250PS Supreme 奢华版 | C27: 322922 | D27: 414800 | E27: 0.2214995178
A28: 车型 | B28: 型 号 | C28: 免税价格 | D28: 市场指导价 | E28: 折扣率 | F28: 代理服务费
A29: 捷豹E-Pace | B29: Standard P200 AWD | C29: 225299 | D29: 281800 | E29: 0.2005003549 | F29: 2800
B30: S P200 AWD | C30: 252482 | D30: 315800 | E30: 0.2005003167
B31: 首发限量版 Premiere edition P200 AWD | C31: 268175 | D31: 334800 | E31: 0.1989994026
B32: S P250 AWD | C32: 269440 | D32: 336800 | E32: 0.2
B33: SE P250 AWD | C33: 294608 | D33: 367800 | E33: 0.1989994562
B34: HSE P250 AWD | C34: 309412 | D34: 385800 | E34: 0.1979989632
A35: 备注：免税价格根据厂方发布的讯息及时更新，鉴于各生产厂家将不断对其产品进行改进或升级，所提供的车型品种、配置及价格亦有可能发生变化。价目表供参考。配置及价格由生产厂确立并以提供的实车为准。
A36: 查看最新免税价格请登录中汽总新版网站：www.88453392.com

Sheet 英菲尼迪
A1: 英菲尼迪 | E1: 2019.4.28
A2: 此价格有效期至2019年5月31日（以发票日期为准）
A3: 销售咨询电话：010-88453392转803、13146684090（微信同号）
A4: 【监管地海关:武汉海关；关区代码：4705 】
A5: 车型 | B5: 型 号 | C5: 免税价格 | D5: 市场指导价 | E5: 代理服务费
A6: 英菲尼迪Q50L | B6: Q50L 舒适版 | C6: 220996 | D6: 264800 | E6: 2500
B7: Q50L 逸享版 | C7: 236790 | D7: 294800
B8: Q50L 进享版 | C8: 249940 | D8: 304800
B9: Q50L 菁英运动版 | C9: 261934 | D9: 332800
B10: Q50L 豪华版 | C10: 266256 | D10: 359800
B11: Q50L 豪华运动版 | C11: 287856 | D11: 389800
B12: 车身颜色：莹贝白、铂金灰、紫玉黑、烈焰红、流金棕、冰锐蓝、海浪蓝 内饰颜色：米色真皮（配逸享版、进享版、豪华版） 灰色真皮（配逸享版、进享版、菁英运动版、豪华版、豪华运动版） 黑色真皮（配逸享版、进享版、菁英运动版、豪华版、豪华运动版） 注：舒适版内饰配黑色皮革或米色皮革。
A13: 车型 | B13: 型 号 | C13: 免税价格 | D13: 市场指导价 | E13: 代理服务费
A14: 英菲尼迪 全新QX50 | B14: QX50 菁英版（黑色/米色皮革） | C14: 275757 | D14: 333800 | E14: 2800
B15: QX50 时尚版 | C15: 290970 | D15: 350800
B16: QX50 时尚版+BOSE Performance至臻系列音响 | C16: 297490 | D16: 358800
B17: QX50 四驱菁英版 | C17: 310916 | D17: 371800
B18: QX50 四驱菁英版+BOSE Performance至臻系列音响 | C18: 317460 | D18: 379800
B19: QX50 四驱智能版 | C19: 341607 | D19: 401800
B20: QX50 四驱智能版+20英寸铝合金轮毂 | C20: 344939 | D20: 405800
B21: QX50 四驱豪华版 | C21: 376393 | D21: 437800
B22: QX50 四驱豪华版+圣托里尼内饰套装 | C22: 393096 | D22: 457780
B23: QX50 四驱旗舰版 | C23: 410073 | D23: 469800
B24: QX50 四驱旗舰版+圣托里尼内饰套装 | C24: 426776 | D24: 489780
B25: 车身颜色：莹贝白、海浪蓝、铂金灰、流金棕、暮色红、魅影黑、水亮银 内饰颜色：米色真皮（配时尚版、四驱菁英版、四驱智能版） 黑色真皮（配时尚版、四驱菁英版、四驱智能版） 米/棕色奢华真皮（配四驱豪华版、四驱旗舰版） 黑色奢华真皮（配四驱豪华版、四驱旗舰版） 注：菁英版内饰配黑色皮革组合或米色皮革。
A26: 备注：免税价格根据厂方发布的讯息及时更新，鉴于各生产厂家将不断对其产品进行改进或升级，所提供的车型品种、配置及价格亦有可能发生变化。价目表供参考。配置及价格由生产厂确立并以提供的实车为准。
A27: 查看最新免税价格请登录中汽总新版网站：www.88453392.com

Sheet 一汽大众
A1: 一汽-大众 | E1: 2019.6.17更新
A2: 销售咨询电话：010-88453392转805、18611668589（微信同号）
A3: 【监管地海关：绿园海关；关区代码：1501】
A4: 品牌 | B4: 型 号 | C4: 免税价 | D4: 指导价 | E4: 代理服务费
A5: 全新一代 迈腾 | B5: 全新一代迈腾380TSI 旗舰型 （ 国六） | C5: 267095.84 | E5: 2500
B6: 全新一代迈腾280TSI 舒适型（国六） | C6: 158649.74 | D6: 197900
B7: 全新一代迈腾330TSI 豪华型（2.0T BZ）（国六） | C7: 191655.91 | D7: 234900
B8: 全新一代迈腾380TSI 豪华型 （ 国六） | C8: 205800.12 | D8: 249900
B9: 全新一代迈腾330TSI 尊贵型（2.0T BZ） （国六） | C9: 219003.04 | D9: 263900
B10: 全新一代迈腾280TSI 领先型 （国六） | C10: 169024.27 | D10: 209900
B11: 全新一代迈腾330TSI 领先型（2.0T BZ）（ 国六） | C11: 178452.99 | D11: 219900
A12: 品牌 | B12: 型 号 | C12: 免税价 | D12: 指导价 | E12: 代理服务费
A13: 探岳 | B13: 探岳280TSI[征途版]豪华型 2WD（国六） | C13: 185769.74 | D13: 202900 | E13: 2800
B14: 探岳330TSI 舒适型 2WD（国六） | C14: 186246.6 | D14: 204800
B15: 探岳330TSI豪华型 4WD（国六） | C15: 216807.45 | D15: 237800
B16: 探岳330TSI豪华型 2WD（国六） | C16: 202481.31 | D16: 222800
B17: 探岳330TSI尊贵型 2WD（国六） | C17: 233042.16 | D17: 255800
B18: 探岳380TSI旗舰型 4WD（国六） | C18: 300846.68 | D18: 333400
B19: 探岳380TSI R-Line 4WD（国六） | C19: 244501.49 | D19: 268500
A20: 品牌 | B20: 型 号 | C20: 免税价 | D20: 指导价 | E20: 代理服务费
A21: 高尔夫2019款 | B21: 新高尔夫1.6L手自一体舒适型（国五） | C21: 115228.36 | D21: 142200 | E21: 2200
B22: 新高尔夫1.4T 自动舒适型（国六） | C22: 127140.82 | D22: 153200
B23: 新高尔夫1.4T 自动旗舰型（国六） | C23: 155446.19 | D23: 180200
B24: 新高尔夫1.4T 自动R-Line（国六） | C24: 145723.67 | D24: 169200
B25: 新高尔夫1.4T 自动豪华型（国六） | C25: 139719.98 | D25: 165200
B26: 新高尔夫1.2T 自动舒适型（国六） | C26: 115800.14 | D26: 147200
A27: 品牌 | B27: 型 号 | C27: 免税价 | D27: 指导价
A28: 新高尔夫嘉旅 | B28: 新高尔夫嘉旅 1.4T 280TSI自动好奇型（国六） | C28: 142033.09 | D28: 164800
B29: 新高尔夫嘉旅 1.4T 280TSI自动守望型（国六） | C29: 158233.9 | D29: 180800
B30: 新高尔夫嘉旅 1.2T 200TSI自动好奇型-纯真版（国六） | C30: 122210.63 | D30: 144000
A31: 品牌 | B31: 型 号 | C31: 免税价 | D31: 指导价
A32: 新高尔夫GTI | B32: 新高尔夫 GTI+8寸屏导航+后排USB接口 | C32: 207573.88 | D32: 239900
B33: 新高尔夫GTI+MIB High 9.2寸导航系统+丹拿音响+后排USB接口 | C33: 219,010.32 | D33: 253600
B34: 新高尔夫GTI+真皮座椅+MIB High 9.2寸导航+丹拿音响(暂无) | C34: 226399.68 | D34: 256100
A35: 品牌 | B35: 型 号 | C35: 免税价 | D35: 指导价 | E35: 代理服务费
A36: 全新CC 2019款 | B36: 全新一代CC 330TSI 华颜版 （国六） | C36: 211960.88 | D36: 254300 | E36: 2500
B37: 全新一代CC 380TSI 魅颜版（国六） | C37: 252982.14 | D37: 278800
B38: 全新一代CC 330TSI 魅颜版(含数字信息包) （国六） | C38: 234121.31 | D38: 298800
B39: 全新一代CC 330TSI 魅颜版（国六） | C39: 225635.01 | D39: 269800
B40: 全新一代CC 380TSI 曜颜版（含豪华包）（国六） | C40: 269955.87 | D40: 317800
A41: 品牌 | B41: 型 号 | C41: 免税价 | D41: 指导价 | E41: 代理服务费
A42: T-ROC·探歌 2018款 | B42: T-ROC 280TSI自动舒适四驱型-黑色装饰条+电动尾门+18英寸车轮（国六） | C42: 168046.82 | D42: 194800 | E42: 2200
B43: T-ROC 280TSI自动舒适型-黑色装饰条+电动尾门+18英寸车轮+防盗报警（国六） | C43: 147800.61 | D43: 177800
B44: T-ROC 230TSI自动时尚型（国六） | C44: 127746.5 | D44: 153800
B45: T-ROC 280TSI自动豪华四驱型（国六） | C45: 179315.18 | D45: 209800
B46: T-ROC 280TSI自动豪华型（国六） | C46: 162125.62 | D46: 190800
B47: T-ROC 230TSI自动进取型（国六） | C47: 133476.73 | D47: 159800
B48: T-ROC 280TSI自动进取型（国六） | C48: 138250.98 | D48: 165800
A49: 品牌 | B49: 型 号 | C49: 免税价 | D49: 指导价 | E49: 代理服务费
A50: 宝来传奇 | B50: 1.5L 手动领先型 （国五） | C50: 86613.37 | E50: 2200
B51: 1.5L 自动领先型 （国五） | C51: 96194.64
A52: 品牌 | B52: 型 号 | C52: 免税价 | D52: 指导价 | E52: 代理服务费
A53: 宝来MQB | B53: 全新一代宝来1.5L手动时尚型（国六） | C53: 91345.81 | D53: 112800 | E53: 2200
B54: 全新一代宝来1.5L自动时尚型（国六） | C54: 101883.06 | D54: 124800
B55: 全新一代宝来1.5L手动舒适型（国六） | C55: 102841.3 | D55: 124800
B56: 全新一代宝来1.5L自动舒适型（国六） | C56: 114336.79 | D56: 136800
B57: 全新一代宝来1.4T自动精英型（国六） | C57: 127748.76 | D57: 150800
B58: 全新一代宝来1.5自动精英型（国六） | C58: 118168.62
A59: 品牌 | B59: 型 号 | C59: 免税价 | D59: 指导价 | E59: 代理服务费
A60: 蔚领 | B60: 蔚领1.5L自动时尚型（国五） | C60: 100163.2 | D60: 128900 | E60: 2200
B61: 蔚领1.4T自动舒适型（国五） | C61: 122004.97 | D61: 151700
B62: 蔚领1.5L 手动舒适型（国五） | C62: 99971.1 | D62: 128700
B63: 蔚领1.5L 手自一体舒适型（国五） | C63: 111466.59 | D63: 140700
B64: 蔚领1.5L 手自一体豪华型（国五） | C64: 124879.69 | D64: 154700
A65: 品牌 | B65: 型 号 | C65: 免税价 | D65: 指导价 | E65: 代理服务费
A66: 全新一代 速腾 L | B66: 1.2TSI 自动时尚型 | C66: 135707.35 | D66: 140900 | E66: 2200
B67: 1.2TSI 手动舒适型 | C67: 暂无 | D67: 138900
B68: 1.2TSI 自动舒适型 | C68: 144284.05 | D68: 149900
B69: 1.4TSI DSG 舒适型 | C69: 155720.78 | D69: 161900
B70: 1.4TSI DSG 豪华型 | C70: 169061.56 | D70: 175900
B71: 1.4TSI R-line 运动 | C71: 163343.76 | D71: 169900
A72: 注：以上价格为基础款，如用户有选装需求，请与我公司联系查询实际销售价格（咨询电话010-88453392）
A73: 备注：一汽大众内饰颜色暂无法选择，只能根据厂家排产车型随机配送。
A74: 备注：免税价格根据厂方发布的讯息及时更新，鉴于各生产厂家将不断对其产品进行改进或升级，所提供的车型品种、配置及价格亦有可能发生变化。价目表供参考。配置及价格由生产厂确立并以提供的实车为准。
A75: 查看最新免税价格请登录中汽总新版网站：www.88453392.com

Sheet 长安福特
A1: 长安福特 | E1: 2019.5.20更新
A2: 销售咨询电话：010-88453392转803、13146684090（微信同号）
A3: 【监管地海关：重庆海关；关区代码:8000】
A4: 品牌 | B4: 型 号 | C4: 免税价 | D4: 指导价 | E4: 代理服务费
A5: 锐界 2018款 | B5: EcoBoost245 两驱精锐型 | C5: 206986 | D5: 229800 | E5: 2500
B6: EcoBoost245 两驱精锐型 国六 | C6: 206986 | D6: 229800
B7: EcoBoost245 两驱五座铂锐型 | C7: 223188 | D7: 249800
B8: EcoBoost245 两驱五座铂锐型 国六 | C8: 223188 | D8: 249800
B9: EcoBoost245 两驱七座铂锐型 | C9: 232438 | D9: 259800
B10: EcoBoost245 两驱七座铂锐型 国六 | C10: 232438 | D10: 259800
B11: EcoBoost245 两驱豪锐型 | C11: 241688 | D11: 269800
B12: EcoBoost245 两驱豪锐型 国六 | C12: 241688 | D12: 269800
B13: EcoBoost245 四驱运动型 | C13: 269438 | D13: 299800
B14: EcoBoost245 四驱运动型 国六 | C14: 269438 | D14: 299800
B15: EcoBoost245 四驱尊锐型 +安全科技选装包 | C15: 287938 | D15: 319800
B16: EcoBoost245 四驱尊锐型 +安全科技选装包 国六 | C16: 287938 | D16: 319800
B17: 车身颜色：匹兹堡黑、凡尔赛棕、雅典娜白、安卡拉白（额外加收2000元）； 锐界全系车型（除精锐型和铂锐型）可选装安卡拉白车身颜色，需额外增加2,000元/台 安全科技选装包：前风挡玻璃加热，LKA车道保持辅助系统，ACS低速行车安全系统，BLIS®盲区监测系统，ACC智能自适应巡航控制 (带前向碰撞预警和碰撞缓解制动系统)，360度全景影像可视系统，Glare free防眩目LED前大灯，前大灯自动远光感应调节系统（配置情况仅供参考，最终配置请以厂家官网内容为准）
A18: 品牌 | B18: 型 号 | C18: 免税价 | D18: 指导价 | E18: 代理服务费
A19: 金牛座 | B19: EcoBoost 180 豪华型 | C19: 191813 | D19: 234800 | E19: 2500
B20: EcoBoost 245 时尚型 | C20: 205688 | D20: 249800
B21: EcoBoost 245 时尚型 国六 | C21: 208688 | D21: 249800
B22: EcoBoost 245 Cognac 特别版 | C22: 211238 | D22: 255800
B23: EcoBoost 245 Cognac 特别版 国六 | C23: 214238 | D23: 255800
B24: EcoBoost 245 卓越型 | C24: 224188 | D24: 269800
B25: EcoBoost 245 卓越型 国六 | C25: 227188 | D25: 269800
B26: EcoBoost 245 LTD限量版 | C26: 261938 | D26: 299800
B27: EcoBoost 245 LTD限量版 国六 | C27: 264938 | D27: 299800
B28: 车身颜色：星际黑、坦桑石蓝、铂钻白 金牛座所有车型（除特别版）如选铂钻白车身颜色，需额外增加2,000元/台
A29: 品牌 | B29: 型 号 | C29: 免税价 | D29: 指导价 | E29: 代理服务费
A30: 新蒙迪欧 2019款 | B30: EcoBoost® 180 智控时尚型 | C30: 154263 | D30: 192800 | E30: 2200
B31: EcoBoost® 180 智控豪华型 | C31: 183188 | D31: 213800
B32: EcoBoost® 200 智控时尚型 | C32: 164288 | D32: 205800
B33: EcoBoost® 200 智控时尚型 国六 | C33: 167288 | D33: 205800
B34: EcoBoost® 200 智控豪华型 | C34: 190213 | D34: 226800
B35: EcoBoost® 200 智控豪华型 国六 | C35: 193213 | D35: 226800
B36: EcoBoost® 245 智控旗舰型 | C36: 239238 | D36: 279800
B37: EcoBoost® 245 智控旗舰型 国六 | C37: 242238 | D37: 279800
B38: 插电混动版 2.0 PHEV 智尚型 | C38: 185598 | D38: 280800
B39: 插电混动版 2.0 PHEV 智尚型 国六 | C39: 185598 | D39: 280800
B40: 插电混动版 2.0 PHEV 智豪型 | C40: 199473 | D40: 295800
B41: 插电混动版 2.0 PHEV 智豪型 国六 | C41: 199473 | D41: 295800
B42: 插电混动版 2.0 PHEV 智尊旗舰型 | C42: 238323 | D42: 337800
B43: 插电混动版 2.0 PHEV 智尊旗舰型 国六 | C43: 238323 | D43: 337800
B44: 车身颜色：典雅白、星际黑、坦桑石蓝、钛空灰（只在PHEV中生产）、铂钻白（需额外加收2000元）； 新蒙迪欧所有车型如选铂钻白车身颜色，需额外增加2,000元/台。 人性科技包：SYNC® 3车载连接系统 +中控台8英寸彩色LCD触控屏 +紧急救援呼叫服务(SYNC®连接服务) +鲨鱼鳍天线（配置仅供参考，请以厂家官网内容为准）
A45: 品牌 | B45: 型 号 | C45: 免税价 | D45: 指导价 | E45: 代理服务费
A46: 新翼虎 2019款 | B46: EcoBoost 180 两驱精翼型 | C46: 150886 | D46: 169800 | E46: 2200
B47: EcoBoost 180 两驱铂翼型 | C47: 158438 | D47: 179800
B48: EcoBoost 180 COGNAC 特别版 | C48: 161988 | D48: 185800
B49: EcoBoost 180 两驱豪翼型 | C49: 170463 | D49: 192800
B50: EcoBoost 245 四驱豪翼型 | C50: 185438 | D50: 219800
B51: EcoBoost 245 四驱豪翼型 国六 | C51: 188438 | D51: 219800
B52: EcoBoost 245 四驱运动型 | C52: 189688 | D52: 229800
B53: EcoBoost 245 四驱运动型 国六 | C53: 192688 | D53: 229800
B54: EcoBoost 245 四驱尊翼型 | C54: 208188 | D54: 249800
B55: EcoBoost 245 四驱尊翼型 国六 | C55: 211188 | D55: 249800
B56: 车身颜色：大峡谷棕、瀚海蓝、盐湖白、熔岩黑、雪山白（额外加收2000元） 新福特翼虎所有车型如选雪山白车身颜色，需额外增加2,000元/台
A57: 品牌 | B57: 型 号 | C57: 免税价 | D57: 指导价 | E57: 代理服务费
A58: 翼搏 2018款 国五 | B58: 1.5L 手动精翼型 | C58: 70236 | D58: 79800 | E58: 2200
B59: 1.5L 自动精翼型 | C59: 77188 | D59: 89800
B60: 1.5L 自动铂翼型 | C60: 92913 | D60: 106800
B61: 1.5L 自动尊翼型 | C61: 104938 | D61: 119800
B62: EcoBoost125自动尊翼型 | C62: 110488 | D62: 125800
B63: 2.0L 四驱尊翼型 | C63: 138238 | D63: 155800
B64: 车身颜色：喜马拉雅白、火焰山红、喀纳斯蓝；内饰颜色：深色内饰。
A65: 品牌 | B65: 型 号 | C65: 免税价 | D65: 指导价 | E65: 代理服务费
A66: 新福睿斯 | B66: 1.5L 手动质享型 （ 国五 ） | C66: 66088 | D66: 87800 | E66: 2200
B67: 1.5L 手动质享型+选装包1（ 国五 ） | C67: 69326 | D67: 91300
B68: 1.5L 自动质享型（ 国五 ） | C68: 72563 | D68: 94800
B69: 1.5L 自动质享型+选装包1（ 国五 ） | C69: 75801 | D69: 98300
B70: 1.5L 手动悦享型（ 国五 ） | C70: 74413 | D70: 96800
B71: 1.5L 手动悦享型+选装包2（ 国五 ） | C71: 77651 | D71: 100300
B72: 1.5L 自动悦享型（ 国五 ） | C72: 80888 | D72: 103800
B73: 1.5L 自动悦享型+选装包2（ 国五 ） | C73: 84126 | D73: 107300
B74: EcoBoost®125 自动臻享型（ 国五 ） | C74: 95688 | D74: 119800
B75: 1.5L手动质享型（ 国六 ） | C75: 69088 | D75: 87800
B76: 1.5L手动质享型 +选装1（ 国六 ） | C76: 72326 | D76: 91300
B77: 1.5L自动质享型（ 国六 ） | C77: 75563 | D77: 94800
B78: 1.5L自动质享型 +选装1（ 国六 ） | C78: 78801 | D78: 98300
B79: 1.5L手动悦享型（ 国六 ） | C79: 77413 | D79: 96800
B80: 1.5L手动悦享型 +选装2（ 国六 ） | C80: 80651 | D80: 100300
B81: 1.5L自动悦享型（ 国六 ） | C81: 83888 | D81: 103800
B82: 1.5L自动悦享型 +选装2（ 国六 ） | C82: 87126 | D82: 107300
B83: 车身颜色：皎月白、秋叶棕、星河蓝、枫叶红、珍珠白（额外加收2000元）； 注：福睿斯所有车型如选珍珠白车身颜色，需额外增加2,000元/台 选装包1：原厂多媒体导航 选装包2：氙气大灯+日间行车灯
A84: 品牌 | B84: 型 号 | C84: 免税价 | D84: 指导价 | E84: 代理服务费
A85: 新一代福克斯 三厢 | B85: 1.5L手动锋跃型 | C85: 94513 | D85: 108800 | E85: 2200
B86: 1.5L手动锋跃型 国六 | C86: 97513 | D86: 108800
B87: 1.5L自动锋跃型 | C87: 105613 | D87: 120800
B88: 1.5L自动锋跃型 国六 | C88: 108613 | D88: 120800
B89: EcoBoost®125 自动锋潮型 | C89: 114863 | D89: 130800
B90: EcoBoost®125 自动锋潮型 国六 | C90: 117863 | D90: 130800
B91: EcoBoost®180 自动锋潮型 | C91: 118563 | D91: 134800
B92: 1.5L自动锋潮型 国六 | C92: 115088 | D92: 127800
B93: EcoBoost®180 自动锋耀型 | C93: 133363 | D93: 150800
B94: EcoBoost®180 自动锋耀型 + LED大灯 | C94: 136878 | D94: 154600
B95: EcoBoost®180 自动锋耀型 + 安全科技包 | C95: 141226 | D95: 159300
B96: EcoBoost®180 自动锋耀型 + LED大灯 +安全科技包 | C96: 144741 | D96: 163100
B97: EcoBoost®180 自动ST-Line | C97: 133363 | D97: 150800
B98: EcoBoost®180 自动ST-Line + 安全科技包 | C98: 141226 | D98: 159300
B99: 车身颜色：朋克黑（仅限ST Line）、电音红（仅限ST Line）、波普蓝、雅韵白、维也纳金（除限ST Line）、探戈红（除限ST Line）、摩登白（额外加收2000元）； 全新福克斯所有车型如选摩登白车身颜色，需额外增加2,000元/台
A100: 新一代福克斯 两厢 | B100: 1.5L手动锋跃型 | C100: 94513 | D100: 108800 | E100: 2200
B101: 1.5L手动锋跃型 国六 | C101: 97513 | D101: 108800
B102: 1.5L自动锋跃型 | C102: 105613 | D102: 120800
B103: 1.5L自动锋跃型 国六 | C103: 108613 | D103: 120800
B104: EcoBoost®125 自动锋潮型 | C104: 114863 | D104: 130800
B105: EcoBoost®125 自动锋潮型 国六 | C105: 117863 | D105: 130800
B106: EcoBoost®180 自动锋潮型 | C106: 118563 | D106: 134800
B107: 1.5L自动锋潮型 国六 | C107: 115088 | D107: 127800
B108: EcoBoost®180 自动锋耀型 | C108: 133363 | D108: 150800
B109: EcoBoost®180 自动锋耀型 + LED大灯 | C109: 136878 | D109: 154600
B110: EcoBoost®180 自动锋耀型 + 安全科技包 | C110: 141226 | D110: 159300
B111: EcoBoost®180 自动锋耀型 + LED大灯 +安全科技包 | C111: 144741 | D111: 163100
B112: EcoBoost®180 自动ST-Line | C112: 133363 | D112: 150800
B113: EcoBoost®180 自动ST-Line + 安全科技包 | C113: 141226 | D113: 159300
B114: 车身颜色：朋克黑（仅限ST Line）、电音红（仅限ST Line）、波普蓝、雅韵白、维也纳金（除限ST Line）、探戈红（除限ST Line）、摩登白（额外加收2000元） 全新福克斯所有车型如选摩登白车身颜色，需额外增加2,000元/台
A115: 品牌 | B115: 型 号 | C115: 免税价 | D115: 指导价 | E115: 代理服务费
A116: 经典福克斯 两厢 国五 | B116: 1.6L手动舒适型(智行版) | C116: 65868 | D116: 99800 | E116: 2200
B117: 1.6L自动舒适型(智行版) | C117: 73128 | D117: 110800
B118: 1.6L自动风尚型(智行版) | C118: 81048 | D118: 122800
B119: Ecoboost125 自动超能风尚型(智行版) | C119: 106713 | D119: 122800
B120: Ecoboost180 自动精英型 | C120: 116888 | D120: 133800
B121: Ecoboost180 自动运动型 | C121: 131688 | D121: 149800
B122: 车身颜色：热火橙、典雅白、糖果红、珍珠白 全新福克斯所有车型如选珍珠白车身颜色，需额外增加2,000元/台
A123: 备注：免税价格根据厂方发布的讯息及时更新，鉴于各生产厂家将不断对其产品进行改进或升级，所提供的车型品种、配置及价格亦有可能发生变化。价目表供参考。配置及价格由生产厂确立并以提供的实车为准。
A124: 查看最新免税价格请登录中汽总新版网站：www.88453392.com

Sheet 东风日产
A1: 东风日产 | F1: 2019.2.27
A2: 备注：除了启辰车型和玉白价格不变，其它车型的白色需加收2000元的原材料费用 新蓝鸟车型除了白色，烈焰红和炫风橙车色也需加价2000元。 全新天籁车型除了白色，天际红、流光橙、砂岩棕车色也需加价2000元。 奇骏珠光白、旋风橙、宝石红需加收2000元
A3: 销售咨询电话：010-88453392转801、13901247598（微信同号）
A4: 奇骏、逍客、轩逸、途达、骊威、玛驰、阳光、骐达、启辰→【监管地海关：广州；关区代码：5135】
A5: 天籁、天籁公爵、楼兰→【监管地海关：襄阳海关；关区代码：4703 】
A6: 品牌 | B6: 型号 | C6: 市场指导价 | D6: 免税价格 | E6: 优惠率 | F6: 代理服务费
A7: 奇骏 | B7: 2.0L XE CVT 2WD 时尚版 | C7: 188800 | D7: 162368 | E7: =1-D7/C7 -> 0.14 | F7: 2200
B8: 2.0L XL CVT 2WD 智联舒适版 | C8: 199300 | D8: 171398 | E8: 0.14
B9: 2.0L XL Premium CVT 2WD 智享版（暂无车） | C9: 202800 | D9: 174408 | E9: 0.14
B10: 2.0L CVT 2WD XL ITS 3-Row CCS 智联七座舒适版 | C10: 207300 | D10: 178278 | E10: 0.14
B11: 2.5L XL CVT 4WD 智联领先版 | C11: 231300 | D11: 198918 | E11: 0.14
B12: 2.5L XL 3 rows CVT 4WD 智联七座领先版 | C12: 239300 | D12: 205798 | E12: 0.14
B13: 2.5L XL ITS CVT 4WD 智联豪华版 | C13: 242300 | D13: 208378 | E13: 0.14
B14: 2.5L XV Premium CVT 4WD 智联至尊版 | C14: 271300 | D14: 233318 | E14: 0.14
A15: 逍客 | B15: 2.0L XL 精英版 | C15: 153800 | D15: 132268 | E15: 0.14 | F15: 2200
B16: 2.0L XV 智享版 | C16: 157800 | D16: 135708 | E16: 0.14
B17: 2.0L XV Prem豪华版 | C17: 168800 | D17: 145168 | E17: 0.14
B18: 2.0L XV TOP旗舰版 | C18: 189800 | D18: 163228 | E18: 0.14
A19: 楼兰 | B19: 2.5 XE精英版 | C19: 238800 | D19: 205368 | E19: 0.14 | F19: 2500
B20: 2.5 XL 智联豪华版 | C20: 271300 | D20: 233318 | E20: 0.14
B21: 2.5XL Plus 智联领先版 | C21: 283800 | D21: 244068 | E21: 0.14
B22: 2.5 S/C HEV XE 4WD 智联尊尚版 | C22: 300300 | D22: 258258 | E22: 0.14
B23: 2.5 S/C HEV 4WD XL 智联尊贵版 | C23: 336300 | D23: 289218 | E23: 0.14
B24: 2.5 S/C HEV XV 4WD 智联旗舰版 | C24: 375800 | D24: 323188 | E24: 0.14
A25: 品牌 | B25: 型号 | C25: 市场指导价 | D25: 免税价格 | E25: 优惠率 | F25: 代理服务费
A26: 第七代 天籁 ALTIMA | B26: 2.0L XE 时尚版 | C26: 179800 | D26: 170810 | E26: =1-D26/C26 -> 0.05 | F26: 2500
B27: 2.0L XL 舒适版 | C27: 186800 | D27: 177460 | E27: 0.05
B28: 2.0L XL Upper 智行版 | C28: 199800 | D28: 189810 | E28: =1-D28/C28 -> 0.05
B29: 2.0T XL 智领版 | C29: 215800 | D29: 205010 | E29: 0.05
B30: 2.0T XL Upper 智享版 | C30: 229800 | D30: 218310 | E30: 0.05
B31: 2.0T XV 智尊版 | C31: 265800 | D31: 252510 | E31: 0.05
B32: 2.0T XV AD1 智尊领航版 | C32: 269800 | D32: 256310 | E32: 0.05
A33: 天籁·公爵 | B33: 2.5XV 尊享版（暂无车） | C33: 232800 | D33: 197880 | E33: 0.15 | F33: 2500
B34: 2.5XV VIP 旗舰版（暂无车） | C34: 298800 | D34: 253980 | E34: 0.15
A35: 品牌 | B35: 型号 | C35: 市场指导价 | D35: 免税价格 | E35: 优惠率 | F35: 代理服务费
A36: 全新轩逸 | B36: 1.6XE 舒适版 MT（暂无车） | C36: 119000 | D36: 95200 | E36: =1-D36/C36 -> 0.2 | F36: 2200
B37: 1.6XE 舒适版 CVT | C37: 129000 | D37: 103200 | E37: 0.2
B38: 1.6XL 豪华版 MT（暂无车） | C38: 125000 | D38: 100000 | E38: 0.2
B39: 1.6XV 智联尊享版 CVT | C39: 140300 | D39: 112240 | E39: 0.2
B40: 1.6XV+ 智联智尊版 CVT | C40: 149300 | D40: 119440 | E40: 0.2
B41: 1.8XV 智联至尊版 CVT（暂无车） | C41: 161500 | D41: 129200 | E41: 0.2
A42: 轩逸·经典 | B42: 1.6XE MT 舒适版 | C42: 99800 | D42: 79840 | E42: 0.2 | F42: 2200
B43: 1.6XE+MT 智联领先版 | C43: 106300 | D43: 85040 | E43: 0.2
B44: 1.6XE MT 智联豪华版（暂无车） | C44: 108300 | D44: 86640 | E44: 0.2
B45: 1.6XE CVT 舒适版 | C45: 109800 | D45: 87840 | E45: 0.2
B46: 1.6XE+CVT 智联领先版 | C46: 116300 | D46: 93040 | E46: 0.2
B47: 1.6XE+CVT 智联豪华版（暂无车） | C47: 118300 | D47: 94640 | E47: 0.2
A48: 品牌 | B48: 型号 | C48: 市场指导价 | D48: 免税价格 | E48: 优惠率 | F48: 代理服务费
A49: 全新劲客 | B49: 1.5L XE酷动版 | C49: 99800 | D49: 87824 | E49: =1-D49/C49 -> 0.12 | F49: 2200
B50: 1.5L XL酷享版 | C50: 122800 | D50: 108064 | E50: 0.12
B51: 1.5L XV智联豪华版 | C51: 132300 | D51: 116424 | E51: 0.12
B52: 1.5L XV TOP智联尊享版 | C52: 137300 | D52: 120824 | E52: 0.12
A53: 途达 | B53: 2.5L XE MT精英版 | C53: 169800 | D53: 149424 | E53: =1-D53/C53 -> 0.12 | F53: 2500
B54: 2.5L XL MT领先版 | C54: 189800 | D54: 167024 | E54: 0.12
B55: 2.5L XL Upper豪华版 | C55: 199800 | D55: 175824 | E55: 0.12
B56: 2.5L XV智享版 | C56: 219800 | D56: 193424 | E56: 0.12
B57: 2.5L XL Upper 4WD四驱豪华版 | C57: 225800 | D57: 205478 | E57: 0.09
B58: 2.5L XL Upper 4WD四驱豪华版（加装LED选装包） | C58: 229000 | D58: 208390 | E58: =1-D58/C58 -> 0.09
B59: 2.5L XV 4WD四驱旗舰版 | C59: 245800 | D59: 223678 | E59: 0.09
A60: 品牌 | B60: 型号 | C60: 市场指导价 | D60: 免税价格 | E60: 优惠率 | F60: 代理服务费
A61: 西玛 | B61: 2.5L XV 至尊版（暂无车） | C61: 267800 | D61: 214240 | E61: =1-D61/C61 -> 0.2 | F61: 2500
B62: 2.5L XL 豪华版 | C62: 249800 | D62: 199840 | E62: 0.2
B63: 2.5L XE 精英版（暂无车） | C63: 234800 | D63: 187840 | E63: 0.2
A64: 骐达 | B64: 1.6L 乐动版 MT | C64: 99900 | D64: 87912 | E64: 0.12 | F64: 2200
B65: 1.6L 乐动版 CVT（暂无车） | C65: 109900 | D65: 96712 | E65: 0.12
B66: 1.6L 酷动版 CVT | C66: 113900 | D66: 100232 | E66: 0.12
B67: 1.6L 智行版 CVT | C67: 122900 | D67: 108152 | E67: 0.12
B68: 1.6L 智享版 CVT | C68: 125900 | D68: 110792 | E68: =1-D68/C68 -> 0.12
B69: 1.6L 智尊版 CVT | C69: 134900 | D69: 118712 | E69: 0.12
A70: 品牌 | B70: 型号 | C70: 市场指导价 | D70: 免税价格 | E70: 优惠率 | F70: 代理服务费
A71: 蓝鸟 | B71: 1.6L 时尚版 MT | C71: 105900 | D71: 91074 | E71: =1-D71/C71 -> 0.14 | F71: 2200
B72: 1.6L 炫酷版 MT | C72: 113900 | D72: 97954 | E72: =1-D72/C72 -> 0.14
B73: 1.6L 炫酷版 CVT | C73: 123900 | D73: 106554 | E73: =1-D73/C73 -> 0.14
B74: 1.6L智联智酷版 CVT | C74: 131900 | D74: 113434 | E74: =1-D74/C74 -> 0.14
B75: 1.6L智联高能版 CVT | C75: 143900 | D75: 123754 | E75: =1-D75/C75 -> 0.14
A76: 阳光 | B76: 1.5XE 舒适版 CVT | C76: 89800 | D76: 71840 | E76: =1-D76/C76 -> 0.2 | F76: 2200
B77: 1.5XE 领先版 CVT | C77: 91000 | D77: 72800 | E77: 0.2
B78: 1.5XE 大师版 CVT（暂无车） | C78: 94000 | D78: 75200 | E78: 0.2
B79: 1.5XV 尊贵版 CVT（暂无车） | C79: 112800 | D79: 90240 | E79: 0.2
A80: 品牌 | B80: 型号 | C80: 市场指导价 | D80: 免税价格 | E80: 优惠率 | F80: 代理服务费
A81: 骊威（暂停预订） | B81: 1.6L 手动舒适版 | C81: 85800 | D81: 77649 | E81: =1-D81/C81 -> 0.095 | F81: 2200
B82: 1.6L 无级舒适版 | C82: 95800 | D82: 86699 | E82: 0.095
B83: 1.6L 手动豪华版 | C83: 95800 | D83: 86699 | E83: 0.095
B84: 1.6L 无级豪华版 | C84: 105800 | D84: 95749 | E84: 0.095
B85: 1.6L 真皮科技版 | C85: 101800 | D85: 92129 | E85: 0.095
A86: 骊威·劲锐版（暂停预订） | B86: 1.6 L 手动舒适版 | C86: 97800 | D86: 88509 | E86: 0.095 | F86: 2200
B87: 1.6 L 无级舒适版 | C87: 107800 | D87: 97559 | E87: 0.095
B88: 1.6L 手动豪华版 | C88: 107200 | D88: 97016 | E88: 0.095
B89: 1.6L 无级豪华版 | C89: 117200 | D89: 106066 | E89: 0.095
B90: 1.6L 酷咖科技版 | C90: 111800 | D90: 101179 | E90: 0.095
A91: 备注：免税价格根据厂方发布的讯息及时更新，鉴于各生产厂家将不断对其产品进行改进或升级，所提供的车型品种、配置及价格亦有可能发生变化。价目表供参考。配置及价格由生产厂确立并以提供的实车为准。
A92: 查看最新免税价格请登录中汽总新版网站：www.88453392.com

Sheet 名录索引.
B2: 北京中汽总回国留学人员购车服务有限公司
B3: 免税车价目索引 排名不分先后
B5: 一汽大众-奥迪 | E5: 华晨宝马 | H5: 北京奔驰 | K5: 沃尔沃
B6: A3 A4L A6L Q3 Q5L Q2L | E6: 5系 3系 2系 1系 X3 X1 | H6: E级 C级 A级 GLA GLC | K6: S90L S60L XC60 XC40
B8: 一汽大众 | E8: 长安福特 | H8: 东风日产 | K8: 上汽大众
B9: 迈腾 探岳 高尔夫 CC 嘉旅 GTI 速腾 探戈 蔚领 宝来 捷达 | E9: 锐界 金牛座 蒙迪欧 翼虎 翼博 福克斯 福睿斯 | H9: 奇骏 逍客 楼兰 劲客 轩逸 天籁 骐达 西玛 蓝鸟 阳光 | K9: 途观L 途昂 途岳 辉昂 帕萨特 途安L 凌渡 柯珞克 朗行 朗逸 柯迪亚克 明锐 昕锐 速派
B11: 一汽丰田 | E11: 广汽丰田 | H11: 东风本田 | K11: 广汽本田
B12: 普拉多 RAV4 卡罗拉 奕泽 皇冠 威驰 花冠 锐志 普锐斯 | E12: 汉兰达 凯美瑞 雷凌 致炫 致享 | H12: CR-V XR-V 思域 艾力绅 UR-V 艾力绅 杰德 哥瑞 思铂睿 | K12: 雅阁 冠道 奥德赛 飞度 凌派 锋范 缤智
B14: 奇瑞捷豹路虎 | E14: 东风英菲尼迪 | H14: 上汽通用 | K14: 长安马自达
B15: 发现神行 揽胜极光 XFL XEL E-Pace | E15: QX50 Q50L | H15: 凯迪拉克XT5 XTS CT6 XT4 ATS-L 别克昂科威 君越 君威 GL8 雪佛兰探界者 迈锐宝 | K15: CX-8 CX-5 昂克赛拉
B17: 北京现代 | E17: 东风标致 | H17: 上汽集团 | K17: 东风雪铁龙
B18: ix35 ix25 索纳塔 途胜 朗动 胜达 名图 | E18: 暂无车 | H18: RW550 RW750 RW950 RW350 MG3 MG5 MG6 W5 | K18: 暂无车
B20: 免税价格根据厂方发布的讯息及时更新，鉴于各生产厂家将不断对其产品进行改进或升级，所提供的车型品种、配置及价格亦有可能发生变化。价目表供参考。配置及价格由生产厂确立并以提供的实车为准。
B24: 销售服务热线：010-88453392 了解更多www.autodutyfree.cn
B25: — 业精于专 服务至上 —

Sheet 一汽丰田
A1: 一汽丰田 | E1: 2019.4.1
A2: 销售咨询电话：010-88453392转801、13901247598（微信同号）
A3: 全新皇冠、亚洲龙、RAV4、卡罗拉、威驰、锐志、花冠→【监管地海关：天津海关；关区代码：0200】
A4: 新普拉多→【监管地海关：成都海关；关区代码：7906】
A5: 普锐斯、兰德酷路泽→【监管地海关：长春海关；关区代码：1501】
A6: 品牌 | B6: 型 号 | C6: 免税价 | D6: 指导价 | E6: 代理服务费
A7: 普拉多（霸道） 白色车漆 另加2000元 | B7: 3.5L VX NAVI 6AT 后挂背胎 | C7: =D7*0.95 -> 574560 | D7: 604800 | E7: 2800
B8: 3.5L VX NAVI 6AT | C8: 566010 | D8: 595800
B9: 3.5L VX 6AT 后挂背胎 | C9: 549860 | D9: 578800
B10: 3.5L VX 6AT | C10: 540360 | D10: 568800
B11: 3.5L TX-L NAVI 6AT 后挂背胎 | C11: 492860 | D11: 518800
B12: 3.5L TX-L NAVI 6AT | C12: 483360 | D12: 508800
B13: 3.5L TX-L 6AT 后挂背胎 尊享版（选装双拼色座椅） | C13: 480510 | D13: 505800
B14: 3.5L TX-L 6AT 后挂背胎 尊享版 | C14: 479560 | D14: 504800
B15: 3.5L TX-L 6AT 后挂背胎 | C15: 474810 | D15: 499800
B16: 3.5L TX-L 6AT 尊享版（选装双拼色座椅） | C16: 471010 | D16: 495800
B17: 3.5L TX-L 6AT 尊享版 | C17: 470060 | D17: 494800
B18: 3.5L TX-L 6AT | C18: 465310 | D18: 489800
B19: 3.5L TX 6AT | C19: 428260 | D19: 450800
B20: 3.5L SX 6AT | C20: 414010 | D20: 435800
A21: 品牌 | B21: 型 号 | C21: 免税价 | D21: 指导价 | E21: 代理服务费
A22: IZOA奕泽 | B22: 2.0L 奕炫天窗版 | C22: =D22*0.95 -> 166060 | D22: 174800 | E22: 2200
B23: 2.0L 奕驰版（选装天窗版） | C23: =D23*0.95 -> 150860 | D23: 158800
B24: 2.0L 奕驰版 | C24: 147060 | D24: 154800
B25: 2.0L 奕动版 | C25: 139460 | D25: 146800
B26: 单色珍珠白另加2000元；双色墨渊黑×白顶、骑士蓝×白顶另加2000元；双色珍珠白×黑顶、绛珠红×白顶、绛珠红×黑顶另加4000元
A27: 品牌 | B27: 型 号 | C27: 免税价 | D27: 指导价 | E27: 代理服务费
A28: 全新皇冠 白色车漆 另加2000元 | B28: 2.0T尊享版 8AT | C28: =D28*0.95 -> 356060 | D28: 374800 | E28: 2500
B29: 2.0T豪华版 8AT（暂停预定） | C29: - | D29: -
B30: 2.0T精英版 8AT | C30: 316160 | D30: 332800
B31: 2.0T运动版 8AT | C31: 275310 | D31: 289800
B32: 2.0T时尚版 8AT | C32: 265810 | D32: 279800
B33: 2.0T先锋版 8AT | C33: 238260 | D33: 250800
A34: 品牌 | B34: 型 号 | C34: 免税价 | D34: 指导价 | E34: 代理服务费
A35: AVALON 亚洲龙 白色车漆 另加2000元 | B35: 2.5L 进取版 | C35: =D35*0.95 -> 198360 | D35: 208800 | E35: 2500
B36: 2.5L 尊贵版 | C36: 232560 | D36: 244800
B37: 2.5L HEV 进取版 | C37: 215460 | D37: 226800
B38: 2.5L HEV 豪华版 | C38: 227810 | D38: 239800
B39: 2.5L HEV 尊贵版 | C39: 244910 | D39: 257800
B40: 2.5L HEV 旗舰版 | C40: 275310 | D40: 289800
A41: 品牌 | B41: 型 号 | C41: 免税价 | D41: 指导价 | E41: 代理服务费
A42: 全新RAV4荣放 白色车漆 另加2000元 | B42: 2.5L 尊贵版 4WD 6AT | C42: =D42*0.95 -> 251560 | D42: 264800 | E42: 2200
B43: 2.5L 精英i版 4WD 6AT（2018款） | C43: 226860 | D43: 238800
B44: 2.0L 新锐版 4WD CVT | C44: 209760 | D44: 220800
B45: 2.0L 智尚版 CVT | C45: 200260 | D45: 210800
B46: 2.0L 风尚X版限量 CVT | C46: 191710 | D46: 201800
B47: 2.0L 舒适版 CVT | C47: 187910 | D47: 197800
B48: 2.0L 风尚版 CVT | C48: 186960 | D48: 196800
B49: 2.0L 先锋版 CVT | C49: 180310 | D49: 186800
B50: 2.0L 都市版 CVT | C50: 167960 | D50: 176800
A51: 品牌 | B51: 型 号 | C51: 免税价 | D51: 指导价 | E51: 代理服务费
A52: 卡罗拉 白色车漆 另加2000元 | B52: 1.2T GLX-I CVT | C52: 134710 | D52: 141800 | E52: 2200
B53: 1.2T GL-I 真皮版 CVT | C53: 128060 | D53: 134800
B54: 1.2T GL-I 真皮版 6MT | C54: 118560 | D54: 124800
B55: 1.2T GL-I 智辉版 CVT | C55: 128060 | D55: 134800
B56: 1.2T GL-I CVT | C56: 121410 | D56: 127800
B57: 1.2T GL-I 6MT | C57: 111910 | D57: 117800
B58: 1.2T GL 智享版 | C58: 114760 | D58: 120800
B59: 1.2T GL CVT | C59: 111910 | D59: 117800
B60: 1.2T GL 6MT | C60: 102410 | D60: 107800
B61: 1.6L GL CVT | C61: 110010 | D61: 115800
B62: 1.6L GL 5MT | C62: 100510 | D62: 105800
A63: 卡罗拉 双擎 白色车漆 另加2000元 | B63: 1.8L 旗舰版 ECVT | C63: 164160 | D63: 172800
B64: 1.8L 豪华版 ECVT | C64: 149910 | D64: 157800
B65: 1.8L 智尚版 ECVT | C65: 142310 | D65: 149800
B66: 1.8L 精英版 ECVT | C66: 139460 | D66: 146800
B67: 1.8L 领先版 ECVT | C67: 134710 | D67: 141800
B68: 1.8L 先锋版 ECVT | C68: 130910 | D68: 137800
A69: 品牌 | B69: 型 号 | C69: 免税价 | D69: 指导价 | E69: 代理服务费
A70: 新VIOS威驰 | B70: 1.3L 前行版 5MT | C70: 65360 | D70: 68800 | E70: 2200
B71: 1.3L 锐行版 5MT | C71: 70110 | D71: 73800
B72: 1.3L 锐行版 CVT | C72: 79610 | D72: 83800
B73: 1.5L 创行版 5MT | C73: 73910 | D73: 77800
B74: 1.5L 创行版 CVT | C74: 83410 | D74: 87800
B75: 1.5L 智行版 5MT | C75: 80560 | D75: 84800
B76: 1.5L智行版 CVT | C76: 90060 | D76: 94800
B77: 1.5L尊行版 CVT | C77: 106210 | D77: 111800
A78: 全新VIOS FS威驰 FS | B78: 1.3L 锋行版 5MT | C78: 65360 | D78: 68800
B79: 1.3L 锋锐版 5MT | C79: 69160 | D79: 72800
B80: 1.3L 锋锐版 CVT | C80: 78660 | D80: 82800
B81: 1.5L 锋驰版 5MT | C81: 72010 | D81: 75800
B82: 1.5L 锋驰版 CVT | C82: 81510 | D82: 85800
B83: 1.5L 锋潮版 5MT | C83: 79610 | D83: 83800
B84: 1.5L 锋潮版 CVT | C84: 89110 | D84: 93800
B85: 1.5L 锋势版 CVT | C85: 102410 | D85: 107800
A86: 品牌 | B86: 型 号 | C86: 免税价 | D86: 指导价 | E86: 代理服务费
A87: 锐志 白色车漆 另加2000元 （暂无车） | B87: 2.5S 菁锐版 6AT | C87: 199310 | D87: 209800 | E87: 2200
B88: 2.5V 菁锐版 6AT | C88: 218310 | D88: 229800
B89: 2.5V 尚锐版 6AT | C89: 230660 | D89: 242800
B90: 2.5V 尚锐导航版 6AT | C90: 239210 | D90: 251800
B91: 2.5V 尊锐版 6AT | C91: 246810 | D91: 259800
B92: 2.5V 尊锐导航版 6AT | C92: 261060 | D92: 274800
B93: 3.0V 尊锐导航版 6AT | C93: 299060 | D93: 314800
A94: COROLLA EX 花冠 （暂无车） | B94: 1.6L 超值版 MT | C94: 86260 | D94: 90800 | E94: 2200
B95: 1.6L 卓越版 AT | C95: 103360 | D95: 108800
B96: 1.6L 卓越版 MT | C96: 95760 | D96: 100800
B97: 1.6L 豪华版 AT | C97: 108110 | D97: 113800
B98: 1.6L 豪华版 MT | C98: 100510 | D98: 105800
A99: 兰德酷路泽 白色车漆 另加2000元 | B99: 4.0L GX-R 5AT | C99: =D99*0.95 -> 732450 | D99: 771000 | E99: 2800
B100: 4.0L VX 5AT | C100: 779000 | D100: 820000
B101: 4.0L VX-R 5AT | C101: 815100 | D101: 858000
B102: 4.6L VX 6AT | C102: 983250 | D102: 1035000
B103: 4.6L VX-R 6AT | C103: 1134300 | D103: 1194000
A104: PRIUS普锐斯 （暂无车） | B104: 1.8L豪华先进版 CVT | C104: 256310 | D104: 269800 | E104: 2200
B105: 1.8L豪华版 CVT | C105: 227810 | D105: 239800
B106: 1.8L标准版 CVT | C106: 218310 | D106: 229800
A107: 备注：免税价格根据厂方发布的讯息及时更新，鉴于各生产厂家将不断对其产品进行改进或升级，所提供的车型品种、配置及价格亦有可能发生变化。价目表供参考。配置及价格由生产厂确立并以提供的实车为准。
A108: 查看最新免税价格请登录中汽总新版网站：www.88453392.com

Sheet 广汽丰田
A1: 广汽丰田 | F1: 2018.6.4
A2: 销售咨询电话：010-88453392转803、13146684090（微信同号）
A3: 【监管地海关： 广州海关；关区代码：5135】
A4: 品牌 | B4: 型 号 | C4: 免税价 | D4: 指导价 | E4: 代理服务费
A5: 全新 汉兰达 2018款 (珍珠白需加收2000元) | B5: 2.0T 两驱精英版 5座 （供货周期长，请垂询预定） 仅限墨晶黑、水晶银 | C5: 239800 | D5: 239800 | E5: 2200
B6: 2.0T 两驱精英版 7座 （供货周期长，请垂询预定） 仅限墨晶黑、水晶银 | C6: 248800 | D6: 248800
B7: 2.0T 两驱豪华版 7座 （供货周期长，请垂询预定） | C7: 289800 | D7: 289800
B8: 2.0T 两驱尊贵版 7座 （供货周期长，请垂询预定） | C8: 299800 | D8: 299800
B9: 2.0T 四驱精英版 7座 （供货周期长，请垂询预定） 仅限墨晶黑、水晶银 | C9: 258800 | D9: 258800
B10: 2.0T 四驱豪华版 7座 （供货周期长，请垂询预定） (外观：珍珠白、炫晶黑。内饰：黑色) | C10: 299800 | D10: 299800
B11: 2.0T 四驱尊贵版 7座 （供货周期长，请垂询预定） | C11: 306800 | D11: 306800
B12: 2.0T 四驱至尊版 7座 （供货周期长，请垂询预定） | C12: 325800 | D12: 325800
B13: 车身颜色：珍珠白（需加收2000元）、墨晶黑、水晶银（米色内饰）、钨金灰（黑色内饰）、翡钻红（黑色内饰） 内饰：米色、黑色
A14: 品牌 | B14: 型 号 | C14: 免税价 | D14: 指导价 | E14: 代理服务费
A15: 雷凌 (LEVIN) （请垂询预定） | B15: 1.8V 豪华版 CVT | C15: =D15*0.92 -> 146096 | D15: 158800 | E15: 2200
B16: 1.8GS-L 领先版 CVT | C16: =D16*0.92 -> 137816 | D16: 149800
B17: 1.8GS 精英版 CVT | C17: 128616 | D17: 139800
B18: 185T 领先版 CVT | C18: =D18*0.92 -> 124936 | D18: 135800
B19: 185T 尊贵版 | C19: 116656 | D19: 126800
B20: 185T 精英版 CVT | C20: 114816 | D20: 124800
B21: 185T 精英版 6MT | C21: 105616 | D21: 114800
B22: 185T 新锐版 CVT | C22: 108376 | D22: 117800
B23: 185T 新锐版 CVT | C23: 99176 | D23: 107800
B24: 车身颜色：珍珠白（需加收1840元）闪电橙、珊瑚红、宝石蓝、水晶银、钨金灰、炫晶黑
A25: 雷凌 双擎 （请垂询预定） | B25: 1.8H GS 精英天窗版 | C25: =D25*0.98 -> 137004 | D25: 139800 | E25: 2200
B26: 1.8H GS-V 尊贵版 | C26: 140924 | D26: 143800
B27: 1.8H GS-L 领先版 | C27: 148764 | D27: 151800
B28: 1.8H V 豪华版 | C28: 153664 | D28: 156800
B29: 车身颜色：珍珠白（需加收1960元）、星云紫、闪电橙、炫晶黑、珊瑚红、宝石蓝
A30: 品牌 | B30: 型 号 | C30: 免税价 | D30: 指导价 | E30: 代理服务费
A31: 全新第八代 凯美瑞 | B31: 2.0 E 精英版（外观：欧泊银、墨晶黑 内饰：米色） | C31: 179800 | D31: 179800 | E31: 2200
B32: 2.0 E 领先版（内饰：黑色/米色） | C32: 189800 | D32: 189800
B33: 2.0 G 豪华版（内饰：黑色/米色） | C33: 199800 | D33: 199800
B34: 2.5 G 豪华版（内饰：黑色/米色） | C34: 219800 | D34: 219800
B35: 2.5 Q 旗舰版（内饰：黑色/米色） | C35: 259800 | D35: 259800
B36: 2.0 S 锋尚版（内饰：黑色） | C36: 205800 | D36: 205800
B37: 2.5 S 锋尚版（内饰：黑色/红色） | C37: 222800 | D37: 222800
B38: 车身颜色：铂金珍珠白（需加收2000元）、欧泊银、墨晶黑、珊瑚红、琥珀棕 仅供锋尚版车型可选：铂金珍珠白黑双色、珊瑚红黑双色
A39: 全新第八代 凯美瑞双擎 | B39: 2.5 HG 豪华版 | C39: 239800 | D39: 239800 | E39: 2200
B40: 2.5 HQ 旗舰版 | C40: 279800 | D40: 279800
B41: 车身颜色：铂金珍珠白（需加收2000元）、欧泊银、墨晶黑、珊瑚红、琥珀棕、海钻蓝 内饰：米色、黑色。
A42: 品牌 | B42: 型 号 | C42: 免税价 | D42: 指导价 | E42: 代理服务费
A43: C-HR （请垂询预定） | B43: 精英版 | C43: =D43*0.95 -> 134710 | D43: 141800 | E43: 2200
B44: 领先版 | C44: =D44*0.95 -> 144210 | D44: 151800
B45: 领先天窗版 | C45: 148010 | D45: 155800
B46: 酷跑领先天窗版 | C46: 151810 | D46: 159800
B47: 酷越领先天窗版 | C47: 151810 | D47: 159800
B48: 豪华天窗版 | C48: 157510 | D48: 165800
B49: 旗舰天窗版 | C49: 169860 | D49: 178800
A50: 致享 （请垂询预定） | B50: 1.3 MT 灵动版 | C50: =D50*0.94 -> 64672 | D50: 68800 | E50: 2200
B51: 1.3E MT 魅动版 | C51: =D51*0.94 -> 71252 | D51: 75800
B52: 1.3E CVT 魅动版 | C52: 78772 | D52: 83800
B53: 1.5E MT 魅动版 | C53: 75012 | D53: 79800
B54: 1.5E CVT 魅动版 | C54: 82532 | D54: 87800
B55: 1.5G MT 炫动版 | C55: 82532 | D55: 87800
B56: 1.5G CVT 炫动版 | C56: 90052 | D56: 95800
B57: 1.5G CVT 炫动天窗版 | C57: 91932 | D57: 97800
B58: 1.5GS CVT 锐动版 | C58: 98512 | D58: 104800
A59: 全新致炫 （请垂询预定） | B59: 致炫1.5GS 锐动版 CVT(外观仅天际白、珊瑚红；米内饰) | C59: 94576 | D59: 102800 | E59: 2200
B60: 致炫1.5G 劲速天窗升级版CVT | C60: 91356 | D60: 99300
B61: 致炫1.5G 炫动天窗版CVT | C61: 88136 | D61: 95800
B62: 致炫1.5G 炫动版 CVT | C62: 86296 | D62: 93800
B63: 致炫 1.5G 炫动版MT | C63: 78936 | D63: 85800
B64: 致炫 1.5E 劲速升级版 CVT | C64: 82156 | D64: 89300
B65: 致炫 1.5E 魅动版 CVT | C65: 78936 | D65: 85800
B66: 致炫 1.3E 魅动版 CVT | C66: 76176 | D66: 82800
B67: 致炫 1.3E 魅动版 MT | C67: 68816 | D67: 74800
B68: 致炫 1.3 灵动版 MT | C68: 63296 | D68: 68800
B69: 车身颜色：天际白、珊瑚红、水晶银（仅黑内）、炫晶黑（仅黑内）、闪电橙（仅黑内）、柠檬黄（仅黑内）、极光蓝（仅黑内） 内饰：米色、黑色。
A70: 备注：免税价格根据厂方发布的讯息及时更新，鉴于各生产厂家将不断对其产品进行改进或升级，所提供的车型品种、配置及价格亦有可能发生变化。价目表供参考。配置及价格由生产厂确立并以提供的实车为准。
A71: 查看最新免税价格请登录中汽总新版网站：www.88453392.com

Sheet 上汽通用
A1: 上汽通用 | C1: 2019.06.05
A2: 销售咨询电话：010-88453392转805、18611668589（微信同号）
A3: 【监管地海关：上海海关；关区代码：2242】
A4: 品牌 | B4: 型 号 | C4: 指导价 | D4: 免税价 | E4: 代理服务费
A5: 雪佛兰 探界者 | B5: 535T 领界版 | C5: 174900 | D5: 143418 | E5: 2200
B6: 535T 驰界版 | C6: 189900 | D6: 155718
B7: 535T 驭界版 | C7: 199900 | D7: 163918
B8: Redline 550T 9速 四驱拓界版 | C8: 225900 | D8: 185238
B9: Redline 550T 9速 四驱捍界版 | C9: 245900 | D9: 201638
A10: 昂科威 | B10: 20T 前驱领先型 | C10: 214900 | D10: 171920 | E10: 2200
B11: 20T 前驱精英型 | C11: 224900 | D11: 179920
B12: 20T 前驱豪华型 | C12: 234900 | D12: 187920
B13: 28T 四驱精英型 | C13: 264900 | D13: 219867
B14: 28T 四驱豪华型 | C14: 284900 | D14: 236467
B15: 28T 四驱全能运动旗舰型 | C15: 309900 | D15: 257217
A16: 品牌 | B16: 型 号 | C16: 指导价 | D16: 免税价 | E16: 代理服务费
A17: 凯迪拉克 XTS （只提供国五版本） | B17: 28T 技术型 | C17: 299900 | D17: 227924 | E17: 2500
B18: 28T 精英型 | C18: 319900 | D18: 243124
B19: 28T 豪华型 | C19: 359900 | D19: 280722
A20: 凯迪拉克 XT5 | B20: 25T 技术型 | C20: 359900 | D20: 280722 | E20: 2800
B21: 28E 四驱技术型 | C21: 379900 | D21: 296322
B22: 28E 四驱领先型 | C22: 479900 | D22: 374322
B23: 28E 四驱铂金型 | C23: 539900 | D23: 421122
B24: 25T 豪华型 | C24: 389900 | D24: 304122
B25: 28T 四驱豪华型 | C25: 419900 | D25: 327522
B26: 备注：凡是购买凯迪拉克XT5豪华型车辆，可以享受额外的优惠政策。25T额外再优惠3个点（11697元）；28T额外再优惠3个点（12597元）。活动时间2019年5月1日至6月30日 名额有限，先到先得。
A27: 凯迪拉克 ATSL（只提供国五版本） | B27: 28T 技术型 | C27: 273800 | D27: 197136 | E27: 2500
B28: 28T 时尚型 | C28: 293800 | D28: 211536
A29: 凯迪拉克 CT6 | B29: 28T 时尚型 | C29: 379700 | D29: 315151 | E29: 2500
B30: 28T 精英型 | C30: 399700 | D30: 331751
B31: 28T 豪华型 | C31: 429700 | D31: 356651
B32: 28T 豪华运动型 | C32: 434700 | D32: 360801
B33: 28T 领先运动型 | C33: 459700 | D33: 381551
A34: 凯迪拉克 XT4 | B34: 28T 技术型 （内饰：檀黑） | C34: 259700 | D34: 228536 | E34: 2800
B35: 28T 豪华型 （内饰：檀黑/岩灰）停产暂无车 | C35: 279700 | D35: 246136
B36: 28T 豪华运动型 （内饰：檀黑） | C36: 284700 | D36: 250536
B37: 28T 领先型 | C37: 289700 | D37: 254936
B38: 28T 领先运动型 | C38: 294700 | D38: 259336
B39: 28T 四驱领先型 （内饰：檀黑/岩灰） | C39: 309700 | D39: 272536
B40: 28T 四驱领先运动型 （内饰：檀黑） | C40: 314700 | D40: 276936
B41: 28T 四驱铂金版 （内饰：铜棕） | C41: 352700 | D41: 310376
B42: 28T 四驱铂金运动版 （内饰：檀黑） | C42: 391700 | D42: 344696
A43: 品牌 | B43: 型 号 | C43: 指导价 | D43: 免税价 | E43: 代理服务费
A44: 全新一代 君越 | B44: 28T 豪华型 | C44: 239800 | D44: 208626 | E44: 2500
B45: 28T 尊贵型 | C45: 269800 | D45: 234726
B46: 28T Avenir | C46: 289800 | D46: 252126
A47: 君威 | B47: 20T 领先型 | C47: 172800 | D47: 150336 | E47: 2500
B48: 20T 精英型 | C48: 182800 | D48: 159036
B49: 20T 豪华型 | C49: 196800 | D49: 171216
B50: 20T 尊贵型 | C50: 216800 | D50: 188616
B51: 28T 尊享型 | C51: 226800 | D51: 197316
B52: GS 28T 豪华型 | C52: 229800 | D52: 199926
B53: GS 28T 尊贵型 | C53: 259800 | D53: 226026
A54: 全新一代 凯越 暂停预订 | B54: 15N 手动精英型 内饰：雅士米 | C54: 83900 | D54: 75510 | E54: 2200
B55: 15N CVT精英型 内饰：雅士米 | C55: 93900 | D55: 84510
B56: 15N CVT豪华型 内饰：摩卡棕 | C56: 99900 | D56: 89910
A57: 品牌 | B57: 型 号 | C57: 指导价 | D57: 免税价 | E57: 代理服务费
A58: 迈锐宝 XL Malibu XL | B58: 535T 锐行版 | C58: 154900 | D58: 131665 | E58: 2200
B59: 535T 锐动版 | C59: 164900 | D59: 140165
B60: 535T 锐联版 | C60: 174900 | D60: 148665
B61: Redline 550T 锐动版 | C61: 194900 | D61: 157869
B62: Redline 550T 锐联版 | C62: 204900 | D62: 165969
B63: Redline 550T 锐智版 | C63: 219900 | D63: 178119
A64: 全新 迈锐宝 （暂停预订） | B64: 530T 风尚版（1.5T） | C64: 169900 | D64: 122328 | E64: 2200
B65: 530T 豪华版（1.5T） | C65: 179900 | D65: 129528
A66: 昂科拉 （暂停预定） | B66: 18T G AT 都市领先型 | C66: 149900 | D66: 113924 | E66: 2200
B67: 18T G AT（OPT）都市时尚型 | C67: 155900 | D67: 118484
B68: 18T GL AT 都市精英型 | C68: 169900 | D68: 129124
A69: 创酷 Trax | B69: 330T手动舒适型 | C69: 99900 | D69: 81918 | E69: 2200
B70: 330T自动精英型 | C70: 119900 | D70: 98318
B71: 330T自动豪华型 | C71: 133900 | D71: 109798
A72: 品牌 | B72: 型 号 | C72: 指导价 | D72: 免税价 | E72: 代理服务费
A73: 沃兰多 （暂停预定） | B73: 530T 自动纵享版（5+2款） | C73: 149900 | D73: 137908 | E73: 2200
B74: 530T 自动耀享版（5+2款） | C74: 154900 | D74: 142508
A75: 科沃兹 （暂停预定） | B75: 320手动欣享版（1.5L） | C75: 79900 | D75: 58327 | E75: 2200
B76: 320自动欣享版（1.5L） | C76: 90900 | D76: 66357
B77: 320手动欣悦版（1.5L） | C77: 90900 | D77: 66357
B78: 320自动欣悦版（1.5L） | C78: 99900 | D78: 72927
B79: 320自动欣尚版（1.5L） | C79: 109900 | D79: 80227
B80: 325T双离合欣悦版（1.0T） | C80: 104900 | D80: 76577
A81: GL6 （暂停预定） | B81: 18T 6座 精英型 | C81: 144900 | D81: 127512 | E81: 2200
B82: 18T 6座 互联豪华型 | C82: 157900 | D82: 138952
B83: 18T 6座 互联尊贵型 | C83: 168900 | D83: 148632
B84: 18T 5座 精英型 | C84: 141900 | D84: 124872
B85: 18T 5座 互联豪华型 | C85: 154900 | D85: 136312
A86: 全新英朗 （暂停预定） | B86: 15T 双离合进取型 | C86: 119900 | D86: 91124 | E86: 2200
B87: 15T 手动精英型 | C87: 116900 | D87: 88844
B88: 15T 双离合精英型 | C88: 126900 | D88: 96444
B89: 18T 互联精英型 | C89: 136900 | D89: 104044
B90: 18T 互联旗舰型 | C90: 144900 | D90: 110124
B91: 15T 穿越火线联名限量无畏版 | C91: 129900 | D91: 98724
A92: 品牌 | B92: 型 号 | C92: 指导价 | D92: 免税价 | E92: 代理服务费
A93: GL8商务车 （暂停预定） | B93: 25S 豪华型 | C93: 249900 | D93: 244902 | E93: 2200
B94: 25S 尊贵型 | C94: 269900 | D94: 264502
A95: GL8 ES 豪华商旅车 （暂停预定） | B95: 28T 舒适型 | C95: 289900 | D95: 289900 | E95: 2200
B96: 28T 尊享型 | C96: 329900 | D96: 329900
B97: 28T 豪华型 | C97: 369900 | D97: 369900
B98: 28T 旗舰型 | C98: 399900 | D98: 399900
A99: GL8 Avenir （暂停预定） | B99: 28T Avenir | C99: 449900 | D99: 449900 | E99: 2200
A100: 威朗 （暂停预订） | B100: 15S 手动进取型 | C100: 135900 | D100: 104900 | E100: 2200
B101: 15S 手动领先型 | C101: 144900 | D101: 111900
B102: 15S 自动进取型 | C102: 146900 | D102: 112900
B103: 15S 自动领先型 | C103: 154900 | D103: 119900
B104: 20T 双离合领先型 | C104: 162900 | D104: 125900
B105: 20T 双离合精英型 | C105: 172900 | D105: 136900
B106: 20T 双离合豪华型 | C106: 179900 | D106: 145900
A107: 威朗轿跑 （暂停预订） | B107: 15S 自动进取型 | C107: 145900 | D107: 109900 | E107: 2200
B108: 15S 自动领先型 | C108: 155900 | D108: 119900
B109: 20T 双离合豪情运动型 | C109: 165900 | D109: 129900
B110: 20T 双离合燃情运动型 | C110: 175900 | D110: 136900
B111: 20T 双离合纵情运动型 | C111: 205900 | D111: 160900
A112: 赛欧3 （暂停预订） | B112: 1.3 LT MT（Sunroof） | C112: 63900 | D112: 47900 | E112: 2200
B113: 1.5 LT MT | C113: 67900 | D113: 51900
B114: 1.3 LT AMT | C114: 68900 | D114: 51900
B115: 1.5 LTZ AMT | C115: 79900 | D115: 60900
A116: 乐风RV （暂停预订） | B116: 1.5 LS MT 畅行版 | C116: 74900 | D116: 59900 | E116: 2200
B117: 1.5 LS AT 畅行版 | C117: 82900 | D117: 65900
B118: 1.5 LT AT 智行版 | C118: 89900 | D118: 71900
B119: 1.5 LTZ AT 趣行版 | C119: 99900 | D119: 79900
A120: 全新科鲁兹 （暂停预订） | B120: 1.5 手动先锋版 | C120: 109900 | D120: 83900 | E120: 2200
B121: 1.5 自动先锋版（天窗） | C121: 124900 | D121: 95600
B122: 1.5 手动炫锋版 | C122: 124900 | D122: 95600
B123: 1.5 自动炫锋版 | C123: 136900 | D123: 104900
B124: 1.4T 双离合炫锋版 | C124: 149900 | D124: 114900
B125: 1.4T 双离合领锋版 | C125: 169900 | D125: 129900
A126: 全新科鲁兹 两厢 （暂停预订） | B126: 1.5L 自动炫锋版 | C126: 136900 | D126: 105900 | E126: 2200
A127: 备注：免税价格根据厂方发布的讯息及时更新，鉴于各生产厂家将不断对其产品进行改进或升级，所提供的车型品种、配置及价格亦有可能发生变化。价目表供参考。配置及价格由生产厂确立并以提供的实车为准。
A128: 查看最新免税价格请登录中汽总新版网站：www.88453392.com

Sheet 上汽大众
A1: 上汽大众（2019.4.23更新途观、途岳切换国六） | E1: 2019.06.05
A2: 销售咨询电话：010-88453392转800、13693233996（微信同号）
A3: 【监管地海关：上海海关；关区代码：2242】
A4: 品牌 | B4: 型 号 | C4: 指导价 | D4: 免税价 | E4: 代理服务费
A5: 全新途观L 2019款 | B5: 1.4T 280TSI 前驱全景舒适版 国六 | C5: 228300 | D5: 197400 | E5: 2800
B6: 2.0T 330TSI 前驱风尚版 国六 | C6: 225300 | D6: 194600
B7: 2.0T 330TSI 前驱全景舒适版 国六 | C7: 248300 | D7: 216000
B8: 2.0T 330TSI 前驱智动豪华版 国六 | C8: 261300 | D8: 228100
B9: 2.0T 380TSI 四驱智动豪华版 国六 | C9: 291300 | D9: 256000
B10: 2.0T 330TSI R-Line 前驱旗舰版 国六 | C10: 278300 | D10: 243900
B11: 2.0T 380TSI R-Line 四驱旗舰版 国六 | C11: 321300 | D11: 283900
B12: 2.0T 380TSI R-Line 四驱尊崇旗舰版 国六 | C12: 361300 | D12: 321200
A13: 途昂 2019款 | B13: 2.0T 330TSI 前驱自动舒适版（国五） | C13: 308900 | D13: 258700 | E13: 2800
B14: 2.0T 330TSI 前驱自动豪华版（国五） | C14: 338900 | D14: 286400
B15: 2.0T 330TSI 前驱自动旗舰版（国五） | C15: 398900 | D15: 341900
B16: 2.0T 380TSI 四驱自动舒适版（国五） | C16: 328900 | D16: 277200
B17: 2.0T 380TSI 四驱自动豪华版（国五） | C17: 368900 | D17: 314200
B18: 2.0T 380TSI 四驱自动旗舰版（国五） | C18: 428900 | D18: 369700
B19: 2.0T 330TSI 前驱自动舒适版（国六） | C19: 310400 | D19: 260100
B20: 2.0T 330TSI 前驱自动豪华版（国六） | C20: 340400 | D20: 287800
B21: 2.0T 330TSI 前驱自动旗舰版（国六） | C21: 400400 | D21: 343300
B22: 2.0T 380TSI 四驱自动舒适版（国六） | C22: 330400 | D22: 278600
B23: 2.0T 380TSI 四驱自动豪华版（国六） | C23: 370400 | D23: 315600
B24: 2.0T 380TSI 四驱自动旗舰版（国六） | C24: 430400 | D24: 371100
B25: 选装6座 | C25: 0 | D25: 0
B26: 选装自动泊车 | C26: 2000 | D26: 1900
A27: 品牌 | B27: 型 号 | C27: 指导价 | D27: 免税价 | E27: 代理服务费
A28: 途昂X Teramont X | B28: 途昂X 330TSI 豪华版 Teramont X 2.0T 137kW DQ500-7F Trendline | C28: 316900 | D28: 280100 | E28: 2800
B29: 途昂X 380TSI 豪华版 Teramont X 2.0T 162kW DQ500-7A Trendline | C29: 336900 | D29: 298700
B30: 途昂X 330TSI 尊崇豪华版 Teramont X 2.0T 137kW DQ500-7F Comfortline | C30: 329900 | D30: 292200
B31: 途昂X 380TSI 尊崇豪华版 Teramont X 2.0T 162kW DQ500-7A Comfortline | C31: 359900 | D31: 320100
B32: 途昂X 530V6 尊崇豪华版 Teramont X 2.5T 220kW DQ500 Topmotor-7A Comfortline | C32: 428900 | D32: 384400
B33: 途昂X 530V6 尊崇旗舰版 Teramont X 2.5T 220kW DQ500 Topmotor-7A Highline | C33: 488900 | D33: 440300
A34: 全新途安L | B34: 全新途安L 280 TSI(1.4TSI) 风尚版7座 | C34: 155800 | D34: 138400 | E34: 2200
B35: 全新途安L 280 TSI(1.4TSI) 舒适版7座 | C35: 169800 | D35: 151400
B36: 全新途安L 280 TSI(1.4TSI) 拓界版6座 | C36: 179800 | D36: 163500
B37: 全新途安L 280 TSI(1.4TSI) 拓界版7座 | C37: 179800 | D37: 163500
B38: 全新途安L 280 TSI(1.4TSI) 拓界豪华版6座 | C38: 199800 | D38: 180200
B39: 全新途安L 280 TSI(1.4TSI) 拓界豪华版7座 | C39: 199800 | D39: 180200
B40: 7座7 Stizer | C40: 0 | D40: 0
B41: 银色车顶行李架+手动开启行李箱遮物帘+行李箱绑带 | C41: 1600 | D41: 1500
B42: 自动刹车 自适应巡航 | C42: 7500 | D42: 7000
B43: 高端音响-丹拿 | C43: 8700 | D43: 8100
B44: Comfortline Plus Package For MP18 | C44: 10000 | D44: 9300
B45: 集成式儿童座椅 | C45: 3000 | D45: 2800
A46: 途岳 | B46: 280TSI 风尚版 国六 | C46: 169800 | D46: 152800 | E46: 2800
B47: 280TSI 舒适版 国六 | C47: 186800 | D47: 168600
B48: 280TSI 豪华版 国六 | C48: 193800 | D48: 175100
B49: 280TSI R-Line 国六 | C49: 193800 | D49: 175100
B50: 280TSI 旗舰版 国六 | C50: 209800 | D50: 190100
B51: 330TSI 豪华版 4MOTION 国六 | C51: 213800 | D51: 192400
B52: 330TSI 旗舰版 4MOTION 国六 | C52: 229800 | D52: 207300
A53: T-Cross | B53: T-Cross 1.5L手动 风尚版（暂无车） | C53: 113900 | D53: 101800 | E53: 2800
B54: T-Cross 1.5L自动 风尚版 | C54: 127900 | D54: 114900
B55: T-Cross 1.5L自动 舒适版 | C55: 139900 | D55: 126000
B56: T-Cross 280TSI DSG 舒适版（1.4T） | C56: 147900 | D56: 133500
B57: T-Cross 280TSI DSG 豪华版（1.4T） | C57: 159900 | D57: 144700
A58: 品牌 | B58: 型 号 | C58: 指导价 | D58: 免税价 | E58: 代理服务费
A59: 全新帕萨特 | B59: 330TSI 精英版 国五 | C59: 222900 | D59: 201200 | E59: 2500
B60: 330TSI 豪华版 国五 | C60: 243900 | D60: 220600
B61: 330TSI 尊贵版 国五 | C61: 258900 | D61: 234500
B62: 330TSI 领尊版 国五 | C62: 259900 | D62: 235400
B63: 330TSI 精英版 国六 | C63: 224400 | D63: 202600
B64: 330TSI 豪华版 国六 | C64: 245400 | D64: 222000
B65: 330TSI 尊贵版 国六 | C65: 260400 | D65: 235900
B66: 330TSI 领尊版 国六 | C66: 261400 | D66: 236800
B67: 380TSI 豪华版 国六 | C67: 253900 | D67: 229900
B68: 380TSI 尊贵版 国六 | C68: 268900 | D68: 243700
B69: 380TSI 旗舰版 国六 | C69: 288900 | D69: 262200
A70: 辉昂 2019款 | B70: 380TSI商务版（国五） | C70: 349000 | D70: 270800 | E70: 2500
B71: 380TSI旗舰版（国五） | C71: 439000 | D71: 334100
B72: 380TSI豪华旗舰版（国五） | C72: 499000 | D72: 389600
B73: 480V6旗舰版（国五） | C73: 559000 | D73: 445100
B74: 480V6豪华旗舰版（国五） | C74: 659000 | D74: 537600
B75: 380TSI商务版（国六） | C75: 350500 | D75: 272200
B76: 380TSI旗舰版（国六） | C76: 440500 | D76: 335500
B77: 380TSI豪华旗舰版（国六） | C77: 500500 | D77: 391000
B78: 全LED辉光自适应前大灯 | C78: 3000 | D78: 2800
A79: 品牌 | B79: 型 号 | C79: 指导价 | D79: 免税价 | E79: 代理服务费
A80: 柯迪亚克 | B80: 2.0T 5座标准版（暂停预定） | C80: 189800 | D80: 177000 | E80: 2200
B81: 2.0T 5座舒适版（暂停预定） | C81: 209800 | D81: 195600
B82: 2.0T 5座豪华版（暂停预定） | C82: 219800 | D82: 204900
B83: 2.0T 7座豪华优享版（暂停预定） | C83: 229800 | D83: 214100
B84: 2.0T 7座豪华科技版（需加选装19寸轮毂1400元） | C84: 249800 | D84: 232700
B85: 2.0T 自动7座四驱旗舰版 | C85: 269800 | D85: 251200
A86: 柯迪亚克 GT | B86: TSI330 两驱标准版 2019款 国五 | C86: 199900 | D86: 175500 | E86: 2200
B87: TSI330 两驱舒适版 2019款 国五 | C87: 219900 | D87: 194000
B88: TSI330 两驱豪华版 2019款 国五 | C88: 232900 | D88: 206100
B89: TSI380 四驱舒适版 2019款 国五 | C89: 242900 | D89: 215400
B90: TSI380 四驱豪华版 2019款 国五 | C90: 255900 | D90: 227400
B91: TSI380 四驱旗舰版 2019款 国五 | C91: 266900 | D91: 240400
B92: TSI330 两驱标准版 2019款 国六 | C92: 201400 | D92: 176900
B93: TSI330 两驱舒适版 2019款 国六 | C93: 221400 | D93: 195400
B94: TSI330 两驱豪华版 2019款 国六 | C94: 234400 | D94: 207500
B95: TSI380 四驱舒适版 2019款 国六 | C95: 244400 | D95: 216800
B96: TSI380 四驱豪华版 2019款 国六 | C96: 257400 | D96: 228800
B97: TSI380 四驱旗舰版 2019款 国六 | C97: 271400 | D97: 241800
B98: 选装：18寸轮毂 | C98: 1500 | D98: 1400
B99: 通风座椅 | C99: 2000 | D99: 1900
B100: 豪华版选装包 | C100: 13000 | D100: 12100
B101: MIB 8寸进口玻璃屏导航 | C101: 3000 | D101: 2800
A102: 柯珞克 | B102: TSI 230 标准版 | C102: 139900 | D102: 119000 | E102: 2200
B103: TSI 280 舒适版 | C103: 156900 | D103: 130700
B104: TSI 280 优享版 | C104: 164900 | D104: 137600
B105: TSI 280 豪华版 | C105: 169900 | D105: 142500
B106: TSI 280 旗舰版 | C106: 185900 | D106: 155900
B107: 可选：棕色内饰 | C107: 0 | D107: 0
B108: 可选：18''精车轮毂 | C108: 0 | D108: 0
B109: 可选：全景天窗 | C109: 5500 | D109: 5100
B110: 可选：智能多路况全LED大灯 | C110: 4500 | D110: 4100
B111: 可选：国六 | C111: 1500 | D111: 1400
A112: 全新凌渡 | B112: 230TSI MT 风尚版Trendline | C112: 145900 | D112: 121700 | E112: 2200
B113: 230TSI DSG 风尚版Trendline | C113: 159900 | D113: 134700
B114: 280TSI DSG 舒适版Comfortline | C114: 184900 | D114: 158000
B115: 280TSI DSG 豪华版Highline | C115: 201900 | D115: 173800
A116: 新波罗 （暂停预定） | B116: 1.4L 自动风尚版 | C116: 87900 | D116: 77100 | E116: 2200
B117: 1.6L 自动舒适版 | C117: 103900 | D117: 92000
B118: 1.6L 自动豪华版 | C118: 115900 | D118: 103200
A119: 全新朗逸 （暂停预定） | B119: 1.6L自动风尚版 | C119: 121900 | D119: 109400 | E119: 2200
B120: 1.6L自动舒适版 | C120: 136900 | D120: 123400
B121: 1.2T自动舒适版 | C121: 139900 | D121: 126200
B122: 1.4T自动舒适版 | C122: 146900 | D122: 129800
B123: 1.4T自动豪华版 | C123: 159900 | D123: 141900
A124: 全新朗行 （暂停预定） | B124: 1.6L自动风尚版 | C124: 124900 | D124: 110500 | E124: 2200
B125: 1.6L自动舒适版 | C125: 139900 | D125: 124500
B126: 1.2T 自动舒适版 | C126: 142900 | D126: 127300
B127: 1.4T自动舒适版 | C127: 149900 | D127: 130800
B128: 1.4T自动豪华版 | C128: 162900 | D128: 143000
A129: 明锐 经典款 （暂停预定） | B129: 1.6L手动标准版 | C129: 119900 | D129: 81600 | E129: 2200
B130: 1.6L手动舒适版 | C130: 128900 | D130: 89900
B131: 1.6L手自一体标准版 | C131: 136900 | D131: 97200
B132: 1.6L手自一体舒适版 | C132: 141900 | D132: 101800
B133: 大天窗带后风窗遮阳帘 | C133: 4000 | D133: 3700
B134: 16英寸铝轮毂 | C134: 1000 | D134: 900
A135: 新明锐 （暂停预定） | B135: 1.6L手动标准版 | C135: 119900 | D135: 96900 | E135: 2200
B136: 1.6L手动舒适版 | C136: 129900 | D136: 105200
B137: 1.6L自动舒适版 | C137: 136900 | D137: 111700
B138: 1.6L自动豪华版 | C138: 146900 | D138: 120900
B139: 1.2T双离合手自一体舒适版 | C139: 139900 | D139: 116800
B140: 1.2T双离合手自一体豪华版 | C140: 149900 | D140: 125700
B141: 1.2T双离合手自一体旗舰版 | C141: 159900 | D141: 132800
B142: 1.4T双离合手自一体豪华版 | C142: 159900 | D142: 132800
B143: 1.4T双离合手自一体旗舰版 | C143: 169900 | D143: 142000
B144: 棕色内饰 | C144: 0 | D144: 0
B145: 17黑色精车轮毂 for Ambition Plus&Style except 1.4T | C145: 1600 | D145: 1500
B146: 17黑色精车轮毂 for 1.4T | C146: 0 | D146: 0
B147: 黑色车顶+黑色外后视镜 for Ambition Plus&Style except 1.4T | C147: 1500 | D147: 1400
B148: 黑色车顶+黑色外后视镜 for 1.4T | C148: 0 | D148: 0
B149: LED大灯 | C149: 6000 | D149: 5500
B150: 泊车辅助&前雷达 | C150: 2000 | D150: 1800
B151: 盲点监测 | C151: 2000 | D151: 1800
B152: ACC自适应巡航 | C152: 4000 | D152: 3700
B153: 大天窗带后风窗遮阳帘 | C153: 4000 | D153: 37
B154: 离回家照明/智能开启/雨量传感器/内后视镜自动防炫目 | C154: 500 | D154: 500
B155: 售后导航 | C155: 0 | D155: 0
A156: 明锐旅行车 （暂停预定） | B156: 1.6L手动标准版 | C156: 124900 | D156: 108900 | E156: 2200
B157: 1.6L自动舒适版 | C157: 141900 | D157: 124500
B158: 1.6L手动豪华版 | C158: 141900 | D158: 124500
B159: 1.6L自动豪华版 | C159: 151900 | D159: 133700
B160: 1.2T双离合手自一体舒适版 | C160: 144900 | D160: 128400
B161: 1.2T双离合手自一体豪华版 | C161: 154900 | D161: 137600
B162: 1.4T双离合手自一体豪华版 | C162: 164900 | D162: 145600
B163: 1.4T双离合手自一体旗舰版 | C163: 174900 | D163: 154800
B164: 棕色内饰 | C164: 0 | D164: 0
B165: 17黑色精车轮毂 for Ambition Plus except 1.4T | C165: 1600 | D165: 1500
B166: 17黑色精车轮毂 for 1.4T DQ Ambition Plus(100% option) | C166: 0 | D166: 0
B167: LED大灯带智能开启/离回家照明功能 | C167: 6200 | D167: 5700
B168: 泊车辅助&前雷达 | C168: 2000 | D168: 1800
B169: ACC&盲点监测 | C169: 5500 | D169: 5100
B170: 电动尾门 | C170: 2500 | D170: 2300
B171: 售后导航 | C171: 0 | D171: 0
B172: 白车身配黑色外后视镜 | C172: 0 | D172: 0
A173: 全新晶锐 （暂停预定） | B173: 1.4L手动前行版 | C173: 69600 | D173: 66000 | E173: 2200
B174: 1.4L手动创行版 | C174: 79900 | D174: 73700
B175: 1.4L自动前行版 | C175: 79600 | D175: 74400
B176: 1.4L自动创行版 | C176: 89900 | D176: 81600
B177: 1.6L自动创行版 | C177: 94900 | D177: 83700
B178: 1.6L自动运动版 | C178: 99900 | D178: 87400
B179: 1.6L自动智行版 | C179: 109900 | D179: 93800
A180: 全新速派2018款 （暂停预定） | B180: 1.4T手动标准版 | C180: 169800 | D180: 138500 | E180: 2200
B181: 1.4T标准版 | C181: 179800 | D181: 144800
B182: 1.4T舒适版 | C182: 189800 | D182: 154000
B183: 1.4T豪华版（不生产） | C183: 210800 | D183: 173400
B184: 1.8T舒适版 | C184: 199800 | D184: 163700
B185: 1.8T豪华版 | C185: 217800 | D185: 180300
B186: 2.0T旗舰版 | C186: 249800 | D186: 209900
B187: 18精车轮毂 | C187: 2700 | D187: 2500
B188: 18精车轮毂+100% option | C188: 2000 | D188: 1800
B189: 电动尾门 | C189: 1500 | D189: 1400
B190: 大天窗 | C190: 4800 | D190: 4400
B191: C6 | C191: 0 | D191: 0
B192: 棕色内饰 | C192: 0 | D192: 0
A193: 昕锐 （暂停预定） | B193: 1.4手动标准版 | C193: 76900 | D193: 61600 | E193: 2200
B194: 1.4手动舒适版 | C194: 90900 | D194: 69700
B195: 1.6手动标准版 | C195: 81900 | D195: 64200
B196: 1.6手动舒适版 | C196: 95900 | D196: 74400
B197: 1.6自动舒适版 | C197: 105900 | D197: 85000
B198: 黑色内饰 | C198: 0 | D198: 0
B199: 15英寸铝合金轮毂 | C199: 1500 | D199: 1400
B200: 16英寸铝合金轮毂 | C200: 0 | D200: 0
... 8 more rows

Sheet 东风本田
A1: 东风本田 | D1: 2019.06.11更新
A2: 销售咨询电话：01088453392转802、13146329185（微信同号）
A3: 【监管地海关：武汉海关；关区代码:4705】
A4: 品牌 | B4: 型 号 | C4: 指导价 | D4: 免税价 | E4: 代理服务费
A5: UR-V | B5: 240TURBO经典版 | C5: 246800 | D5: 246800 | E5: 2200
B6: 240TURBO豪华版 | C6: 267800 | D6: 267800
B7: 370TURBO尊贵版 | C7: 279800 | D7: 279800
B8: 370TURBO尊享版 | C8: 292800 | D8: 292800
B9: 370TURBO尊耀版 | C9: 329800 | D9: 329800
A10: 新思域 CIVIC | B10: 1.0T LXI CVT 尚悦版 | C10: 119900 | D10: 119900 | E10: 2200
B11: 1.0T EXI CVT 尚动版 | C11: 129900 | D11: 129900
B12: 1.0T EXIH CVT 尚擎版 | C12: 133900 | D12: 133900
B13: 1.5T VTI MT 劲控版 | C13: 129900 | D13: 129900
B14: 1.5T VTI CVT 劲动版 | C14: 139900 | D14: 139900
B15: 1.5T SPORT CVT 燃动版 | C15: 145900 | D15: 145900
B16: 1.5T VTIL CVT 劲擎版 | C16: 155900 | D16: 155900
B17: 1.5T RS CVT 燃擎版 | C17: 169900 | D17: 169900
A18: 品牌 | B18: 型 号 | C18: 指导价 | D18: 免税价 | E18: 代理服务费
A19: CR-V | B19: 240TURBO 手动 两驱经典版 | C19: 169800 | D19: 169800 | E19: 2200
B20: 240TURBO CVT 两驱舒适版 | C20: 179800 | D20: 179800
B21: 240TURBO CVT 两驱都市版 | C21: 192800 | D21: 192800
B22: 240TURBO CVT 两驱风尚版 | C22: 203800 | D22: 203800
B23: 240TURBO CVT 四驱豪华版 | C23: 213800 | D23: 213800
B24: 240TURBO CVT 四驱尊贵版 | C24: 231800 | D24: 231800
B25: 240TURBO CVT 四驱尊耀版 | C25: 249800 | D25: 249800
B26: 锐·混动 2.0L 两驱净速版 | C26: 221800 | D26: 221800
B27: 锐·混动 2.0L 两驱净驰版 | C27: 241800 | D27: 241800
B28: 锐·混动 2.0L 两驱净致版 | C28: 259800 | D28: 259800
B29: 锐·混动 2.0L 四驱净享版 | C29: 276800 | D29: 276800
A30: XR-V | B30: 1.5 经典版LXI MT | C30: 127800 | D30: 120132 | E30: 2200
B31: 1.5经典版LXI AT CVT | C31: 137800 | D31: 129532
B32: 1.8舒适版EXI MT | C32: 139800 | D32: 131412
B33: 1.8舒适版EXI AT CVT | C33: 149800 | D33: 140812
B34: 1.8豪华版VTI AT CVT | C34: 162800 | D34: 153032
A35: 品牌 | B35: 型 号 | C35: 指导价 | D35: 免税价 | E35: 代理服务费
A36: INSPIRE | B36: 1.5T悦·T动EXI 国五 CVT典雅版 | C36: 182800 | D36: 182800 | E36: 2200
B37: 1.5T悦·T动VTI 国五 CVT精致版 | C37: 192800 | D37: 192800
B38: 1.5T悦·T动VTIS 国五 CVT精悦版 | C38: 209800 | D38: 209800
B39: 1.5T悦·T动VTIS-A 国五 CVT精耀版 | C39: 219800 | D39: 219800
B40: 悦·混动γ净雅版 | C40: 205800 | D40: 205800
B41: 悦·混动β净尚版 | C41: 229800 | D41: 229800
B42: 悦·混动α净越版 | C42: 249800 | D42: 249800
A43: JADE 杰德 | B43: 1.8L 5座 经典版 | C43: 129900 | D43: 122106 | E43: 2200
B44: 1.8L 5座 舒适版 | C44: 139900 | D44: 131506
B45: 1.8L 4+α 舒适版 | C45: 149900 | D45: 140906
B46: 1.5T 5座 风尚版 | C46: 155900 | D46: 146546
B47: 1.5T 5座 豪华版 | C47: 165900 | D47: 155946
B48: 1.5T 4+α 豪华版 | C48: 179900 | D48: 169106
A49: Elysion 艾力绅 | B49: 2.4AT 经典版LXI | C49: 249800 | D49: 242306 | E49: 2200
B50: 2.4AT舒适版EXI | C50: 263800 | D50: 255886
B51: 2.4AT VTI | C51: 275800 | D51: 267526
B52: 2.4AT豪华版VTIS | C52: 292800 | D52: 284016
B53: 2.4AT至尊版VTISA | C53: 309800 | D53: 300506
A54: 品牌 | B54: 型 号 | C54: 指导价 | D54: 免税价 | E54: 代理服务费
A55: GREIZ哥瑞 | B55: 1.5L MT 经典版 LXI- | C55: 79800 | D55: 74214 | E55: 2200
B56: 1.5L AT 经典版 LXI | C56: 89800 | D56: 83514
B57: 1.5L AT 舒适版 EXI- | C57: 99800 | D57: 92814
B58: 1.5L AT 风尚版 EXI | C58: 106800 | D58: 99324
B59: 1.5L AT 豪华版 VTI | C59: 119800 | D59: 111414
A60: ENVIX 享域 | B60: 1.0TLXI 6 MT舒适版 | C60: 99800 | D60: 99800 | E60: 2200
B61: 1.0TEXI CVT畅享版 | C61: 112300 | D61: 112300
B62: 1.0TVTI CVT乐享版 | C62: 122800 | D62: 122800
B63: 1.0TVTIS CVT耀享版 | C63: 136800 | D63: 136800
A64: 备注：免税价格根据厂方发布的讯息及时更新，鉴于各生产厂家将不断对其产品进行改进或升级，所提供的车型品种、配置及价格亦有可能发生变化。价目表供参考。配置及价格由生产厂确立并以提供的实车为准。
A65: 查看最新免税价格请登录中汽总新版网站：www.88453392.com

Sheet 广汽本田
A1: 广汽本田 | E1: 2019.3.26
A2: 销售咨询电话：01088453392转802、13146329185（微信同号）
A3: 【监管地海关：黄埔海关；关区代码：5200】
A4: 品牌 | B4: 型 号 | C4: 指导价 | D4: 免税价 | E4: 代理服务费
A5: 冠道 （资源紧张，请垂询预定） | B5: 240TURBO CVT 精英版 | C5: 220000 | D5: 220000 | E5: 2200元
B6: 240TURBO CVT 舒享版 | C6: 245800 | D6: 245800
B7: 240TURBO CVT 豪华版 | C7: 253800 | D7: 253800
B8: 240TURBO CVT 尊享版 | C8: 263800 | D8: 263800
B9: 370TURBO 9AT 精英版 | C9: 269800 | D9: 269800
B10: 370TURBO 9AT 豪华版 | C10: 279800 | D10: 279800
B11: 370TURBO 9AT 尊享版 AWD | C11: 292800 | D11: 292800
B12: 370TURBO 9AT 尊贵版 AWD | C12: 313800 | D12: 313800
B13: 370TURBO 9AT 至尊版 AWD | C13: 329800 | D13: 329800
A14: 雅阁 第10代 | B14: 230TURBO 舒适版 | C14: 179800 | D14: =SUM(C14*0.96) -> 172608 | E14: 2200元
B15: 260TURBO 豪华版 | C15: 199800 | D15: 191808
B16: 260TURBO 精英版 | C16: 189800 | D16: 182208
B17: 260TURBO 旗舰版 | C17: 229800 | D17: 220608
B18: 260TURBO 尊贵版 | C18: 209800 | D18: 201408
A19: 雅阁混动版（无车） | B19: H-GX 锐酷版 | C19: 239800 | D19: 239800 | E19: 2200元
B20: H-SX 锐领版 | C20: 259800 | D20: 259800
B21: H-ZX 锐尊版 | C21: 279800 | D21: 279800
A22: 品牌 | B22: 型 号 | C22: 指导价 | D22: 免税价 | E22: 代理服务费
A23: 奥德赛 | B23: 2.4L 舒适版 | C23: 229800 | D23: =SUM(C23*100%) -> 229800 | E23: 2200元
B24: 2.4L 豪华版 | C24: 249800 | D24: =SUM(C24*100%) -> 249800
B25: 2.4L 智享版 | C25: 266800 | D25: =SUM(C25*100%) -> 266800
B26: 2.4L 尊享版 | C26: 279800 | D26: =SUM(C26*100%) -> 279800
B27: 2.4L 至尊版 | C27: 299800 | D27: =SUM(C27*100%) -> 299800
A28: FIT 飞度 | B28: 1.5LX 舒适版MT | C28: 73800 | D28: =SUM(C28*0.97) -> 71586 | E28: 2200元
B29: 1.5LX 舒适版CVT | C29: 81800 | D29: =SUM(C29*0.97) -> 79346
B30: 1.5LXS舒适天窗版CVT | C30: 85800 | D30: 83226
B31: 1.5EXL 豪华版CVT | C31: 102800 | D31: =SUM(C31*0.97) -> 99716
B32: 1.5 SP 潮跑版CVT | C32: 88800 | D32: 86136
B33: 1.5 SP+ 潮跑+版CVT | C33: 93800 | D33: =SUM(C33*0.97) -> 90986
A34: 品牌 | B34: 型 号 | C34: 指导价 | D34: 免税价 | E34: 代理服务费
A35: 歌诗图 | B35: 2.4 豪华版 | C35: 259800 | D35: =SUM(C35*100%) -> 259800 | E35: 2200元
B36: 2.4 豪华导航版 | C36: 265800 | D36: 265800
B37: 3.0AWD尊贵版 | C37: 329800 | D37: 329800
B38: 3.0AWD尊贵导航版 | C38: 335800 | D38: 335800
A39: 凌派 | B39: 1.8MT(风尚版) | C39: 109800 | D39: 109800 | E39: 2200元
B40: 1.8MT(舒适版) | C40: 114800 | D40: 114800
B41: 1.8AT(舒适版) | C41: 124800 | D41: 124800
B42: 1.8MT(豪华版) | C42: 124800 | D42: 124800
B43: 1.8AT(豪华版) | C43: 134800 | D43: 134800
B44: 1.8AT(领先版) | C44: 139800 | D44: 139800
B45: 1.8AT(旗舰版) | C45: 149800 | D45: 149800
A46: 锋范 | B46: 1.5 MT进取版 | C46: 79800 | D46: 79800 | E46: 2200元
B47: 1.5 MT舒适版 | C47: 82800 | D47: 82800
B48: 1.5 MT豪华版 | C48: 98800 | D48: 98800
B49: 1.5 MT旗舰版 | C49: 109800 | D49: 109800
B50: 1.5 CVT舒适版 | C50: 89800 | D50: 89800
B51: 1.5 CVT豪华版 | C51: 105800 | D51: 105800
B52: 1.5 CVT精英版 | C52: 95800 | D52: 95800
B53: 1.5 CVT旗舰版 | C53: 119800 | D53: 119800
A54: SUV 缤智 | B54: 1.5L 舒适版MT | C54: 128800 | D54: =SUM(C54*100%) -> 128800 | E54: 2200元
B55: 1.5L 舒适版CVT | C55: 136800 | D55: 136800
B56: 1.8L 精英版MT | C56: 138800 | D56: 138800
B57: 1.8L 精英版CVT | C57: 146800 | D57: 146800
B58: 1.8L 先锋版CVT | C58: 153800 | D58: 153800
B59: 1.8L 豪华版CVT | C59: 163800 | D59: 163800
B60: 1.8L 旗舰版CVT | C60: 189800 | D60: 189800
A61: 备注：免税价格根据厂方发布的讯息及时更新，鉴于各生产厂家将不断对其产品进行改进或升级，所提供的车型品种、配置及价格亦有可能发生变化。价目表供参考。配置及价格由生产厂确立并以提供的实车为准。
A62: 查看最新免税价格请登录中汽总新版网站：www.88453392.com

Sheet 长安马自达
A1: 长安马自达 | E1: 2019.4.15
A2: 销售咨询电话：010-88453392转802、13146329185（微信同号）
A3: 【监管地海关：金陵海关；关区代码：2323】
A4: 品牌 | B4: 型 号 | C4: 免税价 | D4: 指导价 | E4: 代理服务费
A5: 马自达 CX-8 | B5: 2.5L 6AT 2WD 豪华型 | C5: 245800 | D5: 258800 | E5: 2200
B6: 2.5L 6AT 2WD 尊贵型 | C6: 273800 | D6: 286800
B7: 2.5L 6AT 2WD 尊贵型+A包 | C7: 282600 | D7: 295600
B8: 2.5L 6AT AWD 尊享型 | C8: 286800 | D8: 299800
B9: 2.5L 6AT AWD 尊享型+A包 | C9: 295600 | D9: 308600
B10: 2.5L 6AT AWD 旗舰型 | C10: 317800 | D10: 330800
B11: 可选颜色：铂钢灰（需加2000元）、水晶魂动红（需加3000元）、极夜黑、琉璃棕、幻影银、珠光白 选装包A（科技安全包）：SCBS低速刹车辅助系统 + SBS中高速刹车辅助系统 + FOW前方碰撞预警系统
A12: 第二代 Mazda CX-5 | B12: 2.0L 6MT 2WD 舒适型 | C12: 156800 | D12: 169800
B13: 2.0L 6AT 2WD 舒适型 | C13: 166800 | D13: 179800
B14: 2.0L 6AT 2WD 智尚型 | C14: 176800 | D14: 189800
B15: 2.0L 6AT 2WD 智享型 | C15: 186800 | D15: 199800
B16: 2.0L 6AT AWD 智享型 | C16: 196800 | D16: 209800
B17: 2.5L 6AT 2WD 智尊型 | C17: 206800 | D17: 219800
B18: 2.5L 6AT AWD 智尊型 | C18: 216800 | D18: 229800
B19: 2.5L 6AT AWD 旗舰型 | C19: 232800 | D19: 245800
B20: 选装包A：科技安全包LDWS+HBC+SCBS需加4800元（智尊型可选装） 选装包B：BOSE音响包需加5800元（AWD智尊型可选装） 选装包C：AWD车型专属冬季加热包—前风挡、方向盘、后排座椅加热需加2000元（AWD智享型、AWD智尊型、AWD旗舰型可选装） CX-5可选颜色：极夜黑、珠光白、幻影银、恒星蓝、铂钢灰（需加2000元）、水晶魂动红（需加3000元）
A21: 品牌 | B21: 型 号 | C21: 免税价 | D21: 指导价 | E21: 代理服务费
A22: 新Mazda3 Axela 三厢 魂动红加收2000元 | B22: 1.5L 6MT 舒适型 | C22: 97900 | D22: 112900 | E22: 2200
B23: 1.5L 6AT 舒适型 | C23: 108900 | D23: 123900
B24: 1.5L 6MT 豪华型 | C24: 113900 | D24: 128900
B25: 1.5L 6AT 豪华型 | C25: 124900 | D25: 139900
B26: 1.5L 6AT 尊贵型 | C26: 135900 | D26: 150900
B27: 1.5L 6AT 尊贵型 选装A | C27: 140700 | D27: 155700
B28: 2.0L 6AT 尊贵型 | C28: 140900 | D28: 155900
B29: 2.0L 6AT 旗舰型 | C29: 147900 | D29: 162900
B30: 2.0L 6AT 旗舰型 选装B | C30: 154700 | D30: 169700
B31: 2.0L 6AT 旗舰型 选装B+D | C31: 157700 | D31: 172700
B32: 车身颜色：魂动红(加收2000元)、星际蓝、琉璃棕、流星灰、幻影银、珠光白
B33: 科技安全包A：BSM盲点检测系统+RCTA倒车预警系统+SCBS低速刹车辅助系统 科技安全包B：SBS中高速刹车辅助系统+FOW前方碰撞预警系统+MRCC自适应巡航系统+AFS前大灯智能弯道辅助照明系统 科技安全包C：科技安全包A+科技安全包B 科技安全包D：i-ELOOP制动能量回收系统
A34: 新Mazda3 Axela 两厢 魂动红加收2000元 | B34: 1.5L 6MT 舒适型 | C34: 97900 | D34: 112900 | E34: 2200
B35: 1.5L 6AT 舒适型 | C35: 108900 | D35: 123900
B36: 1.5L 6AT 豪华型 | C36: 124900 | D36: 139900
B37: 2.0L 6AT 豪华型 | C37: 134900 | D37: 149900
B38: 2.0L 6AT 运动型 | C38: 144900 | D38: 159900
B39: 2.0L 6AT 运动型 选装C | C39: 155700 | D39: 170700
B40: 车身颜色：魂动红(加收2000元)、星际蓝、琉璃棕、流星灰、幻影银、珠光白
B41: 科技安全包A：BSM盲点检测系统+RCTA倒车预警系统+SCBS低速刹车辅助系统 科技安全包B：SBS中高速刹车辅助系统+FOW前方碰撞预警系统+MRCC自适应巡航系统+AFS前大灯智能弯道辅助照明系统 科技安全包C：科技安全包A+科技安全包B 科技安全包D：i-ELOOP制动能量回收系统
A42: 备注：免税价格根据厂方发布的讯息及时更新，鉴于各生产厂家将不断对其产品进行改进或升级，所提供的车型品种、配置及价格亦有可能发生变化。价目表供参考。配置及价格由生产厂确立并以提供的实车为准。
A43: 查看最新免税价格请登录中汽总新版网站：www.88453392.com

Sheet 北京现代
A1: 北京现代 | E1: 2017.9.8
A2: 销售咨询电话：01088453392转802、13146329185（微信同号）
A3: 【监管地海关：北京海关；关区代码：0100】
A4: 品牌 | B4: 型 号 | C4: 免税价 | D4: 指导价 | E4: 代理服务费
A5: ix35 | B5: 2.0 GL 6MT2 | C5: =D5*0.84 -> 125832 | D5: 149800 | E5: 2200
B6: 2.0 GL 6AT2 | C6: =D6*0.84 -> 137592 | D6: 163800
B7: 2.0 GLS 6AT2 | C7: 148512 | D7: 176800
B8: 2.0 GLS 6AT2 V1（全景天窗） | C8: 155232 | D8: 184800
B9: 2.0 GLS 6AT2 V2（PIO导航） | C9: 151872 | D9: 180800
B10: 2.0 GLS 6AT2 V4（通风座椅） | C10: 151032 | D10: 179800
B11: 2.0 GLS 6AT2 V5 (空气净化器) | C11: 149772 | D11: 178300
B12: 2.0 GLS 6AT4 | C12: 169512 | D12: 201800
B13: 2.0 GLX 6AT2 | C13: 164472 | D13: 195800
B14: 2.4 GLX 6AT2 | C14: =D14*0.86 -> 169248 | D14: 196800
B15: 2.4 GLX 6AT2 V3（通风座椅+MDPS） | C15: =D15*0.86 -> 173548 | D15: 201800
B16: 2.4 GLX 6AT4 | C16: =D16*0.86 -> 191608 | D16: 222800
B17: 2.4 GLX 6AT4 V6 (智能泊车) | C17: =D17*0.86 -> 194188 | D17: 225800
A18: ix25 | B18: 1.6 GS MT | C18: =D18*0.875 -> 96075 | D18: 109800 | E18: 2200
B19: 1.6 GS MT V1：ISG | C19: =D19*0.875 -> 98262.5 | D19: 112300
B20: 1.6 GLS AT | C20: 116200 | D20: 132800
B21: 1.6 GLS AT V1：ISG | C21: 118387.5 | D21: 135300
B22: 1.6 GLS AT V2：PIO AVC+倒车影像+自动开闭大灯+鲨鱼鳍 | C22: 118825 | D22: 135800
B23: 1.6 GLS AT V5：ISG+PIO AVC+倒车影像+自动开闭大灯+鲨鱼鳍+盲点视频 | C23: 121887.5 | D23: 139300
B24: 1.4T GLS AT | C24: 124950 | D24: 142800
B25: 1.4T GLS ATV1：ISG | C25: 127137.5 | D25: 145300
B26: 1.4T GLS AT V6：ISG+盲点视频 | C26: 128012.5 | D26: 146300
B27: 1.4T DLX AT | C27: 133700 | D27: 152800
B28: 1.4T DLX AT V1：ISG | C28: 135887.5 | D28: 155300
B29: 1.4T DLX AT V7：座椅加热&通风 | C29: 135012.5 | D29: 154300
B30: 1.4T DLX AT V8：ISG+座椅加热&通风 | C30: 137200 | D30: 156800
B31: V1：电动助力转向 + 方向盘4向可调； V2：自动防炫目内后视镜 + 倒车影像； V3：Blue Link
A32: 品牌 | B32: 型 号 | C32: 免税价 | D32: 指导价 | E32: 代理服务费
A33: 名图 2017款 | B33: 1.8 GL MT 手动 舒适性 | C33: 110330 | D33: 129800 | E33: 2200
B34: 1.8 GL AT 自动 智能性 | C34: 127330 | D34: 149800
B35: 1.8 GL MT 手动 舒适性 | C35: 135830 | D35: 159800
B36: 1.8 GL MT 手动 舒适性 | C36: 135830 | D36: 159800
B37: 1.8 GL MT 手动 舒适性 | C37: 144330 | D37: 169800
A38: 全新胜达 2017款 | B38: 2.4L GLS MT 2WD 5P | C38: =D38*0.87 -> 195576 | D38: 224800 | E38: 2200
B39: 2.4L GLS AT 2WD 5P | C39: =D39*0.87 -> 208626 | D39: 239800
B40: 2.0T GLS AT 2WD 7P | C40: =D40*0.91 -> 218218 | D40: 239800
B41: 2.0T GLS AT 2WD 7P V1（颜色包） | C41: =D41*0.91 -> 218218 | D41: 239800
B42: 2.0T GLS AT 2WD 7P V2（智能电动尾门） | C42: 221858 | D42: 243800
B43: 2.0T GLS AT 2WD 7P V4（颜色包+智能电动尾门） | C43: 221858 | D43: 243800
B44: 2.0T GLS AT 4WD 7P | C44: 227318 | D44: 249800
B45: 2.0T GLS AT 4WD 7P V1（颜色包） | C45: 227318 | D45: 249800
B46: 2.0T GLS AT 4WD 7P V3（全景倒车影像） | C46: 230958 | D46: 253800
B47: 2.0T GLS AT 4WD 7P V5（颜色包+全景倒车影像） | C47: 230958 | D47: 253800
B48: 2.0T TOP AT 4WD 7P | C48: 263718 | D48: 289800
B49: 2.0T TOP AT 4WD 7P V3（全景倒车影像） | C49: 267358 | D49: 293800
B50: 2.0T TOP AT 4WD 7P V6（自动紧急制动/前碰撞预警/智能巡航/盲区监测） | C50: 270998 | D50: 297800
B51: 2.0T TOP AT 4WD 7P V7（全景倒车影像+自动紧急制动/前碰撞预警/智能巡航/盲区监测） | C51: 274638 | D51: 301800
A52: 品牌 | B52: 型 号 | C52: 免税价 | D52: 指导价 | E52: 代理服务费
A53: 索纳塔9 2017款 | B53: 2.0 GLS AT | C53: =D53*0.86 -> 150328 | D53: 174800 | E53: 2200
B54: 2.0 GLS AT V6(米色内饰) | C54: =D54*0.86 -> 150328 | D54: 174800
B55: 2.0 GLS AT V7（真皮座椅） | C55: 153768 | D55: 178800
B56: 2.0 GLS AT V8(真皮座椅＋米色内饰) | C56: 153768 | D56: 178800
B57: 2.0 GLS AT V9（智能钥匙） | C57: 152048 | D57: 176800
B58: 2.0 GLS AT V10(智能钥匙＋米色内饰) | C58: 152048 | D58: 176800
B59: 2.0 GLS AT V11（智能钥匙＋真皮座椅） | C59: 155488 | D59: 180800
B60: 2.0 GLS AT V12(智能钥匙＋真皮座椅＋米色内饰) | C60: 155488 | D60: 180800
B61: 1.6T GS AT (网状格栅) | C61: 154628 | D61: 179800
B62: 1.6T GS AT V13(横幅格栅) | C62: 154628 | D62: 179800
B63: 1.6T GX AT (网状格栅) | C63: 160648 | D63: 186800
B64: 1.6T GX AT V13(横幅格栅) | C64: 160648 | D64: 186800
B65: 1.6T GLS AT (横幅格栅) | C65: 167528 | D65: 194800
B66: 1.6T GLS AT V14(网状格栅) | C66: 167528 | D66: 194800
B67: 1.6T GLS AT V1(横幅格栅+全天窗景) | C67: 170968 | D67: 198800
B68: 1.6T GLS AT V15(网状格栅+全天窗景) | C68: 170968 | D68: 198800
B69: 1.6T GLS AT V2(横幅格栅+PIO净化器) | C69: 168818 | D69: 196300
B70: 1.6T GLS AT V16(网状格栅+PIO净化器) | C70: 168818 | D70: 196300
B71: 1.6T GLS AT V3(横幅格栅+V1+V2) | C71: 172258 | D71: 200300
B72: 1.6T GLS AT V17(网状格栅+V1+V2) | C72: 172258 | D72: 200300
B73: 1.6T GLX AT (横幅格栅) | C73: 178708 | D73: 207800
B74: 1.6T GLX AT V14(网状格栅) | C74: 178708 | D74: 207800
B75: 1.6T DLX AT (横幅格栅) | C75: 187308 | D75: 217800
B76: 1.6T DLX AT V14(网状格栅) | C76: 187308 | D76: 217800
B77: 1.6T DLX AT V4(横幅格栅+OEM) | C77: 200208 | D77: 232800
B78: 1.6T DLX AT V18(网状格栅+OEM) | C78: 200208 | D78: 232800
B79: 2.4 DLX AT | C79: 187308 | D79: 217800
B80: 2.4 DLX AT V6(米色内饰) | C80: 187308 | D80: 217800
B81: 2.4 DLX AT V5(颜色包) | C81: 187308 | D81: 217800
B82: 2.4 LUX AT | C82: 195908 | D82: 227800
B83: 2.4 LUX AT V6(米色内饰) | C83: 195908 | D83: 227800
B84: 2.4 LUX AT V5(颜色包) | C84: 195908 | D84: 227800
B85: 2.4 TOP AT | C85: 214828 | D85: 249800
B86: 2.4 TOP AT V6(米色内饰) | C86: 214828 | D86: 249800
B87: 2.4 TOP AT V5(颜色包) | C87: 214828 | D87: 249800
B88: 颜色包：棕色内饰
A89: 索纳塔9 混合动力 | B89: 2.0 HE 6AT2 | C89: =D89*0.86 -> 180428 | D89: 209800 | E89: 2200
B90: 2.0 HE 6AT2 V1(颜色包) | C90: =D90*0.86 -> 180428 | D90: 209800
B91: 2.0 HS 6AT2 | C91: 197628 | D91: 229800
B92: 2.0 HS 6AT2 V1(颜色包) | C92: 197628 | D92: 229800
B93: 2.0 HL 6AT2 | C93: 214828 | D93: 249800
B94: 2.0 HL 6AT2 V1(颜色包) | C94: 214828 | D94: 249800
B95: 2.0 HL 6AT2 V2（选装） | C95: 223428 | D95: 259800
B96: 2.0 HL 6AT2 V3选装+颜色包) | C96: 223428 | D96: 259800
B97: 选装包：前驻车雷达，LDWS车道偏离警示系统，LED组合尾灯，远近光一体式HID氙气大灯，大灯自动清洗&自动调节，智能转向辅助照明系统，智能远近光调节，防紫外线玻璃
A98: 品牌 | B98: 型 号 | C98: 免税价 | D98: 指导价 | E98: 代理服务费
A99: 朗动 2016款 （暂停预定） | B99: 1.6 GS MT | C99: =D99*0.76 -> 80408 | D99: 105800 | E99: 2200
B100: 1.6 GLS AT | C100: =D100*0.76 -> 88008 | D100: 115800
B101: 1.6 DLX MT | C101: =D101*0.76 -> 88008 | D101: 115800
B102: 1.6 DLX AT | C102: =D102*0.76 -> 97128 | D102: 127800
A103: 全新途胜 | B103: 2.0 GL 6MT2 | C103: =D103*0.895 -> 143110.5 | D103: 159900 | E103: 2200
B104: 2.0 GL 6AT2 | C104: =D104*0.895 -> 147585.5 | D104: 164900
B105: 2.0 GL 6AT2 V5(天窗) | C105: 150270.5 | D105: 167900
B106: 2.0 GLS 6AT2 | C106: 156535.5 | D106: 174900
B107: 2.0 GLS 6AT2 V1(ISG) | C107: 159220.5 | D107: 177900
B108: 2.0 GLS 6AT2 V3(Special) | C108: 161905.5 | D108: 180900
B109: 2.0 GLS 6AT2 V2(全景天窗） | C109: 160115.5 | D109: 178900
B110: 2.0 GLS 6AT2 V3(全景天窗+电动尾门) | C110: 163695.5 | D110: 182900
B111: 2.0 GLS 6AT2 V7(侧气帘) | C111: 158325.5 | D111: 176900
B112: 2.0 GLS 6AT2 V18（电动座椅） | C112: 157878 | D112: 176400
B113: 2.0 GLS 6AT2 V4(ISG+全景天窗+电动尾门+侧气帘) | C113: 167275.5 | D113: 186900
B114: 1.6T GL 7AT2 | C114: 152060.5 | D114: 169900
B115: 1.6T GL 7AT2 V5(天窗) | C115: 154745.5 | D115: 172900
B116: 1.6T GLS 7AT2 | C116: 161010.5 | D116: 179900
B117: 1.6T GLS 7AT2 V1(ISG) | C117: 163695.5 | D117: 182900
B118: 1.6T GLS 7AT2 V2(全景天窗） | C118: 164590.5 | D118: 183900
B119: 1.6T GLS 7AT2 V3(全景天窗+电动尾门) | C119: 168170.5 | D119: 187900
B120: 1.6T GLS 7AT2 V7(侧气帘) | C120: 162800.5 | D120: 181900
B121: 1.6T GLS 7AT2 V18（电动座椅） | C121: 162353 | D121: 181400
B122: 1.6T GLS 7AT2 V4(ISG+全景天窗+电动尾门+侧气帘) | C122: 171750.5 | D122: 191900
B123: 1.6T GLX 7AT2 | C123: 176225.5 | D123: 196900
B124: 1.6T GLX 7AT2 V18（电动座椅） | C124: 177568 | D124: 198400
B125: 1.6T GLX 7AT2 V7(侧气帘) | C125: 178015.5 | D125: 198900
B126: 1.6T DLX 7AT4(ISG) | C126: 193230.5 | D126: 215900
B127: 1.6T DLX 7AT4 V6(ISG)(LED) | C127: 195915.5 | D127: 218900
B128: 1.6T TOP 7AT4(ISG) | C128: 214710.5 | D128: 239900
B129: 1.6T TOP 7AT4(ISG)( 前驻车雷达，车道偏离预警，自动泊车) | C129: 219185.5 | D129: 244900
B130: 2.0 GLS 6AT2 V8(红色内饰) | C130: 156535.5 | D130: 174900
B131: 2.0 GLS 6AT2 V9(V1+V8)(ISG+红色内饰) | C131: 159220.5 | D131: 177900
B132: 2.0 GLS 6AT2 V10(V2+V8)(全景天窗+红色内饰） | C132: 160115.5 | D132: 178900
B133: 2.0 GLS 6AT2 V11(V3+V8)(全景天窗+电动尾门+红色内饰) | C133: 163695.5 | D133: 182900
B134: 2.0 GLS 6AT2 V15(V7+V8)(侧气帘+红色内饰) | C134: 158325.5 | D134: 176900
B135: 2.0 GLS 6AT2 V19（电动座椅+红色内饰） | C135: 157878 | D135: 176400
B136: 2.0 GLS 6AT2 V12(V4+V8)(ISG+全景天窗+电动尾门+侧气帘红色内饰) | C136: 167275.5 | D136: 186900
B137: 1.6T GLS 7AT2 V8(红色内饰) | C137: 161010.5 | D137: 179900
B138: 1.6T GLS 7AT2 V9(V1+V8))(ISG+红色内饰) | C138: 163695.5 | D138: 182900
B139: 1.6T GLS 7AT2 V10(V2+V8)(全景天窗+红色内饰） | C139: 164590.5 | D139: 183900
B140: 1.6T GLS 7AT2 V11(V3+V8)(全景天窗+电动尾门+红色内饰) | C140: 168170.5 | D140: 187900
B141: 1.6T GLS 7AT2 V15(V7+V8)(侧气帘+红色内饰) | C141: 162800.5 | D141: 181900
B142: 1.6T GLS 7AT2 V19（电动座椅+红色内饰） | C142: 162353 | D142: 181400
B143: 1.6T GLS 7AT2 V12(V4+V8)(ISG+全景天窗+电动尾门+侧气帘红色内饰) | C143: 171750.5 | D143: 191900
B144: 1.6T GLX 7AT2 V8(红色内饰) | C144: 176225.5 | D144: 196900
B145: 1.6T GLX 7AT2 V19（电动座椅+红色内饰） | C145: 177568 | D145: 198400
B146: 1.6T GLX 7AT2 V15(V7+V8)(侧气帘+红色内饰) | C146: 178015.5 | D146: 198900
B147: 1.6T DLX 7AT4 V8(红色内饰) | C147: 193230.5 | D147: 215900
B148: 1.6T DLX 7AT4 V14 (V6+V8))(LED+红色内饰) | C148: 195915.5 | D148: 218900
B149: 1.6T TOP 7AT4 V8(红色内饰) | C149: 214710.5 | D149: 239900
B150: 1.6T TOP 7AT4 V8(红色内饰)( 前驻车雷达，车道偏离预警，自动泊车) | C150: 219185.5 | D150: 244900
A151: 备注：免税价格根据厂方发布的讯息及时更新，鉴于各生产厂家将不断对其产品进行改进或升级，所提供的车型品种、配置及价格亦有可能发生变化。价目表供参考。配置及价格由生产厂确立并以提供的实车为准。
A152: 查看最新免税价格请登录中汽总新版网站：www.88453392.com

Sheet 上汽汽车
A1: 上海汽车 | E1: 2014.10.21
A2: 销售咨询电话：010-88453392转801、13901247598（微信同号）
A3: 【 监管地海关：上海海关；关区代码：2242】
A4: 品牌 | B4: 型 号 | C4: 指导价 | D4: 免税价 | E4: 代理服务费
A5: RW350MCE | B5: 讯悦+Inkanet | C5: 102700 | D5: =C5*0.94 -> 96538 | E5: 2200
B6: 讯达 | C6: 94700 | D6: =C6*0.94 -> 89018
B7: 讯捷+Inkanet | C7: 93700 | D7: 88078
B8: 讯驰 | C8: 85700 | D8: 80558
B9: 备注：带Inkanet车型需加7000元，此费用要与当地经销商另行结算
A10: RW550 | B10: 1.8T TST品臻版 D | C10: 161800 | D10: 152092 | E10: 2200
B11: 1.8T MT品逸版 D | C11: 148800 | D11: 139872
B12: 1.8L TST启臻版 C | C12: 146800 | D12: 137992
B13: 1.8L MT启逸版 C | C13: 133800 | D13: 125772
B14: 1.8L TST超值版 C | C14: 139800 | D14: 131412
B15: 1.8L MT超值版 C | C15: 126800 | D15: 119192
A16: 经典RW550 | B16: 1.8L AT豪华版 backup | C16: 119800 | D16: 112612 | E16: 2200
B17: 1.8L MT豪华版 backup | C17: 107800 | D17: 101332
B18: 1.8L AT风尚版 S | C18: 111800 | D18: 105092
B19: 1.8L MT风尚版 S | C19: 99800 | D19: 93812
A20: W5 | B20: 极地特装两驱版 | C20: 163800 | D20: 149848 | E20: 2200
B21: 极地特装四驱版（加装inkaNet） | C21: 192800 | D21: 179988
B22: 备注：带Inkanet车型需加7000元，此费用要与当地经销商另行结算
A23: RW950 | B23: 2.4豪华行政版 | C23: 264900 | D23: 249006 | E23: 2200
B24: 2.4豪华版 | C24: 239900 | D24: 225506
B25: 2.0典雅版 | C25: 214900 | D25: 202006
B26: 2.0舒适版 | C26: 188900 | D26: 177566
A27: RW750 | B27: 商雅AT | C27: 192800 | D27: 181232 | E27: 2200
B28: 商雅MT | C28: 182800 | D28: 171832
B29: 迅雅AT | C29: 174800 | D29: 164312
B30: 迅雅MT | C30: 162800 | D30: 153032
A31: MG6 | B31: 1.8L TST Backup 驾值版MY14 | C31: 139800 | D31: 131412 | E31: 2200
B32: 1.8L MT Backup 驾值版MY14 | C32: 126800 | D32: =C32*0.94 -> 119192
B33: 1.8T MT Backup 性能版/选真皮座椅+红色缝线MY14 | C33: 135700 | D33: 127558
B34: 1.8T TST Backup 性能版/选真皮座椅+红色缝线MY14 | C34: 148700 | D34: 139778
A35: MG5 | B35: 1.5L AT精英 | C35: 107700 | D35: 101238 | E35: 2200
B36: 1.5L MT精英 | C36: 99700 | D36: 93718
B37: 1.5T AT COM | C37: 119700 | D37: 112518
A38: MG3 14款 | B38: 1.3 MT STD 手动舒适 | C38: 69700 | D38: 65518 | E38: 2200
B39: 1.3 AMT STD 自动舒适 | C39: 76700 | D39: 72098
B40: 1.5 AMT COM 自动精英 | C40: 89700 | D40: 84318
B41: 1.5 AMT LUX 自动豪华 | C41: 97700 | D41: 91838
A42: 备注：免税价格根据厂方发布的讯息及时更新，鉴于各生产厂家将不断对其产品进行改进或升级，所提供的车型品种、配置及价格亦有可能发生变化。价目表供参考。配置及价格由生产厂确立并以提供的实车为准。
A43: 查看最新免税价格请登录中汽总新版网站：www.88453392.com

Sheet Sheet1
